Workbook

Sheet Calculations
A1: CYCLOID PENDULUM | U1: xc | V1: yc | W1: =Aktina -> 0.5 | AC1: =COS(Z3) -> -1 | AH1: THesix1 = AKTina * (fi - Sin(fi)) - 2 * PI * AKTina | AM1: MikosToxoy = PLATOSKINHSHS * Cos(2 * PI * x0 / PerIOdos) | AY1: megistox | AZ1: =161 -> 161 | BC1: CYCLOID | BD1: =Platoskinishs*COS(2*PI()*XRONOS/Tperiod) -> 1.175570505 | BE1: =2*ACOS(BD1/(4*Aktina)) -> 1.884955592 | BF1: fi | BG1: Platoskinishs | BH1: =4*Aktina*COS(arxikiGon) -> 2 | BI1: Taxtyths | BJ1: 0.2 | BK1: velocity for producing cycloid
B2: NO | C2: SHOW CIRCLE ROLLING TO FORM CYCLOID | Q2: TIME | U2: =Aktina*V3-2*PI()*Aktina -> -2.199114858 | V2: =-Aktina -> -0.5 | X2: vimaex | Y2: =2*PI()/200 -> 0.03141592654 | Z2: fi | AB2: x1 | AC2: y1 | AD2: xx | AE2: yy | AF2: φ | AG2: cicle | AH2: theSIy1 = -AKTina * (1 - Cos(fi)) | AL2: 150 | AO2: SIMPLE PENDULUM | AT2: ARXIKI | AU2: =PI()/2-arxikiGon -> 1.570796327 | AW2: =XCURRENT+R_KAMP*NX -> -1.723586599 | AX2: =YCURRENT+R_KAMP*NY -> 0.6545084972 | AY2: elaxisto | AZ2: =-megistox+Aktina -> -160.5 | BA2: efaptomeni | BB2: =-SIN(BE1)/(1-COS(BE1)) -> -0.726542528 | BC2: =Aktina*(LICURRENT-SIN(LICURRENT))-2*PI()*Aktina -> -2.674643116 | BD2: 0 | BE2: =-2*PI()*Platoskinishs*SIN(2*PI()/Tperiod*XRONOS)/Tperiod -> 3.582885919 | BF2: =2*Platoskinishs/SQRT(1-FICURRENT^2/(4*Aktina)^2)*DFI_DT/(4*Aktina)^2 -> 4.428690551 | BI2: GonTax | BJ2: =Taxtyths/Aktina -> 0.4 | BS2: kykloeidhs.DrawWidth = 2
U3: gonia strofis | V3: =BE1 -> 1.884955592 | Z3: =-PI() -> -3.141592654 | AA3: =0 -> 0 | AB3: =-xkathetos/2+Aktina*Z3-Aktina*SIN(Z3) -> -3.141592654 | AC3: =Aktina*(1+COS(Z3)) -> 0 | AD3: =Aktina*(AF3-SIN(AF3))-2*PI()*Aktina -> -3.141592654 | AE3: =-Aktina*(1-COS(AF3)) -> 0 | AF3: =0 -> 0 | AG3: θ | AH3: xcircle | AI3: ycircle | AJ3: T | AK3: S | AL3: f | AM3: x | AO3: CIRCULAR | AP3: semicircle | AS3: =PI()/2*Aktina -> 0.7853981634 | AT3: DGON | AU3: =(PI()/2-arxikiGon)/50 -> 0.03141592654 | AV3: =R_KAMP -> 1.618033989 | AW3: rx | AX3: ry | BA3: cos1 | BB3: =1/SQRT(1+BB2^2) -> 0.8090169944 | BC3: =-Aktina*(1-COS(LICURRENT)) -> -0.6545084972 | BD3: 0 | BE3: Platoskinishs*COS(2*PI()*R[4]C[-38]/Tperiod) | BI3: Aktina | BJ3: 0.5 | BK3: radius of cycle producing cycloid | BS3: DsOverDt = 2 * PI * PLATOSKINHSHS / PerIOdos * Sin(2 * PI * x0 / PerIOdos) 'ds/dt
J4: ANGLE DETERMINING | Z4: =Z3+vimaex -> -3.110176727 | AA4: =AA3+1 -> 1 | AB4: -3.110179311 | AC4: =Aktina*(1+COS(Z4)) -> 0.0002467198171 | AD4: =Aktina*(AF4-SIN(AF4))-2*PI()*Aktina -> -3.14159007 | AE4: -0.0002467198171 | AF4: =AF3+2*PI()/200 -> 0.03141592654 | AG4: =-PI() -> -3.141592654 | AH4: =IF(SHOW_CIRCLE="YES",xc+Aktina*COS(AG4),1000+xc+Aktina*COS(AG4)) -> 997.3008851 | AI4: =yc+Aktina*SIN(AG4) -> -0.5 | AJ4: =0 -> 0 | AK4: =Platoskinishs*COS(2*PI()*AJ4/Tperiod) -> 2 | AL4: =2*ACOS(AK4/(4*Aktina)) -> 0 | AP4: x | AQ4: y | AS4: xx | AT4: Yy | AV4: CYCLE OF CURVATURE | BA4: sin1 | BB4: =BB3*BB2 -> -0.5877852523 | BC4: =Aktina*(1-COS(LICURRENT))*DLI_DT -> 2.898615597 | BD4: =-Aktina*SIN(LICURRENT)*DLI_DT -> -2.105967504 | BE4: 2*ACOS(RC[-1]/(4*Aktina)) | BI4: xkathetos | BJ4: =2*PI()*Aktina -> 3.141592654 | BK4: MhkOsN = 4 * AKTina | BS4: If 1 - Cos(fi) <> 0 Then
J5: THE MOVEMENT | P5: 74 | Q5: time | R5: =Tperiod/40*P5 -> 5.249358782 | Z5: -3.078760801 | AA5: =AA4+1 -> 2 | AB5: -3.078781467 | AC5: 0.0009866357859 | AD5: -3.141571987 | AE5: -0.0009866357859 | AF5: =AF4+2*PI()/200 -> 0.06283185307 | AG5: =AG4+2*PI()/50 -> -3.015928947 | AH5: =IF(SHOW_CIRCLE="YES",xc+Aktina*COS(AG5),1000+xc+Aktina*COS(AG5)) -> 997.3048278 | AI5: -0.5626666168 | AJ5: =AJ4+Tperiod/40 -> 0.07093728083 | AK5: 1.975376681 | AL5: 0.3141592654 | AO5: =PI()/2 -> 1.570796327 | AP5: =-PI()*Aktina-Length*SIN(AO5) -> -3.570796327 | AQ5: =2*Aktina-Length*COS(AO5) -> 1 | AR5: =ARXIKI -> 1.570796327 | AS5: =-PI()*Aktina-Length*SIN(AR5) -> -3.570796327 | AT5: =2*Aktina-Length*COS(AR5) -> 1 | AV5: =0 -> 0 | AW5: =rx+R_KAMP*COS(AV5) -> -0.1055526106 | AX5: =ry+R_KAMP*SIN(AV5) -> 0.6545084972 | BC5: VX | BD5: VY | BE5: Y=-Aktina*(1-COS(LICURRENT)) | BS5: efaptomeni = -Sin(fi) / (1 - Cos(fi))
A6: g | B6: 9.80665 | F6: 1/2 m (ds/dt)²+mgl(1-cosθ)=1/2mv0² | Q6: SCN | R6: =SNC!U6 -> -0.6016635272 | S6: U | T6: =SQRT(g/Length)*(R5+cyclicPerid/4) -> 13.19468915 | U6: ELLIPTIC | Z6: -3.047344874 | AA6: 3 | AB6: -3.047414607 | AC6: 0.002219017698 | AD6: -3.14152292 | AE6: -0.002219017698 | AF6: 0.09424777961 | AG6: =AG5+2*PI()/50 -> -2.890265241 | AH6: =IF(SHOW_CIRCLE="YES",xc+Aktina*COS(AG6),1000+xc+Aktina*COS(AG6)) -> 997.3165936 | AI6: -0.6243449436 | AJ6: 0.1418745617 | AK6: 1.902113033 | AL6: 0.6283185307 | AO6: =AO5-PI()/2/50 -> 1.5393804 | AP6: -3.569809448 | AQ6: 0.9371784818 | AR6: =AR5-DGON -> 1.5393804 | AS6: -3.569809448 | AT6: 0.9371784818 | AV6: =AV5+2*PI()/50 -> 0.1256637061 | AW6: -0.1183112919 | AX6: 0.857301929 | BC6: y | BE6: X==Aktina*(LICURRENT-SIN(LICURRENT))-2*PI()*Aktina | BI6: MHKOSN | BJ6: =4*Aktina -> 2 | BS6: cos1 = 1 / Sqr(1 + efaptomeni ^ 2)
A7: mass | B7: 2 | F7: s=lθ | Q7: CN | R7: =SQRT(1-R6^2) -> 0.7987496479 | S7: =SQRT(1-BD8^2*R6^2) -> 0.904986464 | T7: DN | U7: =BC2 -> -2.674643116 | V7: =BC3 -> -0.6545084972 | Z7: -3.015928947 | AA7: 4 | AB7: -3.016094184 | AC7: 0.003942649343 | AD7: -3.141427417 | AE7: -0.003942649343 | AF7: 0.1256637061 | AG7: -2.764601535 | AH7: =IF(SHOW_CIRCLE="YES",xc+Aktina*COS(AG7),1000+xc+Aktina*COS(AG7)) -> 997.3359969 | AI7: -0.6840622763 | AJ7: 0.2128118425 | AK7: 1.782013048 | AL7: 0.9424777961 | AO7: =AO6-PI()/2/50 -> 1.507964474 | AP7: -3.566849784 | AQ7: 0.8744189609 | AR7: 1.507964474 | AS7: -3.566849784 | AT7: 0.8744189609 | AV7: =AV6+2*PI()/50 -> 0.2513274123 | AW7: -0.1563861237 | AX7: 1.056897187 | BA7: xcircular | BB7: ycirlcular | BC7: AD | BD7: =Length*(1-COS(ARXIKI)) -> 2 | BE7: DY/DT=-AKTINA*SIN(LICURRENT)*DL_DT | BJ7: DLI-DT=2/SQRT(1-FICURRENT^2/(4*Aktina)^2)*DFI_DT | BS7: Sin1 = cos1 * efaptomeni
A8: Length | B8: =4*Aktina -> 2 | F8: 1/2 L² (dΘ/dt)²+gl(1-cosθ)=gl(1-cosθ0) | U8: =xc -> -2.199114858 | V8: =yc -> -0.5 | Z8: -2.984513021 | AA8: 5 | AB8: -2.984835605 | AC8: 0.006155829702 | AD8: -3.14127007 | AE8: -0.006155829702 | AF8: 0.1570796327 | AG8: -2.638937829 | AH8: =IF(SHOW_CIRCLE="YES",xc+Aktina*COS(AG8),1000+xc+Aktina*COS(AG8)) -> 997.3627318 | AI8: -0.7408768371 | AJ8: 0.2837491233 | AK8: 1.618033989 | AL8: 1.256637061 | AO8: 1.476548547 | AP8: -3.561920256 | AQ8: 0.8117833734 | AR8: 1.476548547 | AS8: -3.561920256 | AT8: 0.8117833734 | AV8: 0.3769911184 | AW8: -0.2191766433 | AX8: 1.250146536 | BA8: =-PI()*Aktina-AB*R6*S7 -> -0.03072525841 | BB8: =2*Aktina-(Length-AD*(R6^2)) -> -0.2760020001 | BC8: ALFA | BD8: =SIN(ARXIKI/2) -> 0.7071067812 | BE8: DX/DT=AKTINA*(1-COS(LICURRNET)*DLI_DT | BJ8: D2LI_DT2=2*Pi()/tperiod*platoskinishs*(1/(1-FICURRENT^2/(4*AKTINA)^2)^(3/2)*FICURRENT*Dfi_DT^2+1/sqrt(1-(ficurrent/(4*aktina))^2))*d2fi_dt2) | BS8: GoNiaEF = Atn(efaptomeni)
A9: dt | B9: =Tperiod/200 -> 0.01418745617 | F9: 1/2 L² (dΘ/dt) = - gl(1-cosθ)+gl(1-cosθ0) | S9: efatoinbeu | T9: =-SIN(V3)/(1-COS(V3)) -> -0.726542528 | U9: =BC2-V11*BB4 -> -1.723586599 | V9: =BC3+V11*BB3 -> 0.6545084972 | Z9: -2.953097094 | AA9: 6 | AB9: -2.953654217 | AC9: 0.008856374636 | AD9: -3.141035531 | AE9: -0.008856374636 | AF9: 0.1884955592 | AG9: -2.513274123 | AH9: =IF(SHOW_CIRCLE="YES",xc+Aktina*COS(AG9),1000+xc+Aktina*COS(AG9)) -> 997.3963766 | AI9: -0.7938926261 | AJ9: 0.3546864042 | AK9: 1.414213562 | AL9: 1.570796327 | AO9: 1.445132621 | AP9: -3.555025729 | AQ9: 0.7493335329 | AR9: 1.445132621 | AS9: -3.555025729 | AT9: 0.7493335329 | AV9: 0.5026548246 | AW9: -0.3056926065 | AX9: 1.434002316 | BA9: =-PI()*Aktina -> -1.570796327 | BB9: =2*Aktina -> 1 | BC9: AB | BD9: =2*Length*BD8 -> 2.828427125 | BE9: D2Y/DT | BJ9: D2FI_DT2 | BK9: =-(2*PI()/Tperiod)^2*Platoskinishs*COS(2*PI()*Tperiod*XRONOS) -> 7.749133269 | BS9: If fi > PI Then GoNiaEF = PI - GoNiaEF
A10: Tperiod | B10: =2*PI()*SQRT(Length/g) -> 2.837491233 | D10: Exact Period | F10: 1/2 L² (dΘ/dt) = gl(cosθ-cosθ0) | J10: 1/2 L² (dΘ/dt) = 2gl(sin²(θ0/2) - sin²(θ/2)) | S10: cos1 | T10: =1/SQRT(1+T9^2) -> 0.8090169944 | Z10: -2.921681168 | AA10: 7 | AB10: -2.92256529 | AC10: 0.01204161903 | AD10: -3.140708531 | AE10: -0.01204161903 | AF10: 0.2199114858 | AG10: -2.387610417 | AH10: =IF(SHOW_CIRCLE="YES",xc+Aktina*COS(AG10),1000+xc+Aktina*COS(AG10)) -> 997.4364008 | AI10: -0.842273553 | AJ10: 0.425623685 | AK10: 1.175570505 | AL10: 1.884955592 | AO10: 1.413716694 | AP10: -3.546173008 | AQ10: 0.6871310699 | AR10: 1.413716694 | AS10: -3.546173008 | AT10: 0.6871310699 | AV10: 0.6283185307 | AW10: -0.414569605 | AX10: 1.605565013 | BI10: LICURRENT | BJ10: Licurrent =2/SQRT(1-FICURRENT^2/(4*Aktina)^2)*DFI_DT
A11: arxikiGon | B11: 0 | C11: =RADIANS(B11) -> 0 | D11: =4*SQRT(Length/g)*'landen trasform'!W18 -> 2.837491233 | S11: sin1 | T11: =T10*T9 -> -0.5877852523 | U11: aktinakamp | V11: =2*SQRT(-2*V7*Aktina) -> 1.618033989 | Z11: -2.890265241 | AA11: 8 | AB11: -2.891584004 | AC11: 0.01570841944 | AD11: -3.140273891 | AE11: -0.01570841944 | AF11: 0.2513274123 | AG11: -2.261946711 | AH11: =IF(SHOW_CIRCLE="YES",xc+Aktina*COS(AG11),1000+xc+Aktina*COS(AG11)) -> 997.4821731 | AI11: -0.8852566214 | AJ11: 0.4965609658 | AK11: 0.9079809995 | AL11: 2.199114858 | AO11: 1.382300768 | AP11: -3.535370828 | AQ11: 0.6252373708 | AR11: 1.382300768 | AS11: -3.535370828 | AT11: 0.6252373708 | AV11: 0.7539822369 | AW11: -0.5440905835 | AX11: 1.762128981 | BJ11: =-2*PI()*Platoskinishs*SIN(2*PI()/Tperiod*XRONOS)/Tperiod
A12: =0 -> 0 | C12: INITIAL ANGLE | D12: =90-B11 -> 90 | Z12: -2.858849315 | AA12: 9 | AB12: -2.860725431 | AC12: 0.01985315716 | AD12: -3.139716537 | AE12: -0.01985315716 | AF12: 0.2827433388 | AG12: -2.136283004 | AH12: =IF(SHOW_CIRCLE="YES",xc+Aktina*COS(AG12),1000+xc+Aktina*COS(AG12)) -> 997.5329717 | AI12: -0.9221639628 | AJ12: 0.5674982467 | AK12: 0.6180339887 | AL12: 2.513274123 | AO12: 1.350884841 | AP12: -3.522629851 | AQ12: 0.5637135172 | AR12: 1.350884841 | AS12: -3.522629851 | AT12: 0.5637135172 | AV12: 0.879645943 | AW12: -0.6922129187 | AX12: 1.901225113 | BK12: =2/Tperiod*Platoskinishs*(1/(1-FICURRENT^2/(4*Aktina)^2)^(3/2)*FICURRENT/(4*Aktina)^2*DFI_DT^2+1/SQRT(1-(FICURRENT/(4*Aktina))^2))*D2FI_DT2 -> 91.33508996 | BS12: If Abs(MikosToxoy / (4 * AKTina)) <= 1 Then
A13: =A12+dt -> 0.01418745617 | Z13: -2.827433388 | AA13: 10 | AB13: -2.830004524 | AC13: 0.02447174185 | AD13: -3.139021518 | AE13: -0.02447174185 | AF13: 0.3141592654 | AG13: -2.010619298 | AH13: =IF(SHOW_CIRCLE="YES",xc+Aktina*COS(AG13),1000+xc+Aktina*COS(AG13)) -> 997.5879955 | AI13: -0.9524135262 | AJ13: 0.6384355275 | AK13: 0.3128689301 | AL13: 2.827433388 | AO13: 1.319468915 | AP13: -3.507962649 | AQ13: 0.5026202257 | AR13: 1.319468915 | AS13: -3.507962649 | AT13: 0.5026202257 | AV13: 1.005309649 | AW13: -0.856600633 | AX13: 2.020659778 | BS13: fi = 2 * Acos(MikosToxoy / (4 * AKTina)) ' + Cos(kykloeidhs.xthesi.Value * PI / 360))
A14: 0.02837491233 | E14: GoNiaEF = Atn(efaptomeni) | F14: =ATAN(T9) -> -0.6283185307 | Z14: -2.796017462 | AA14: 11 | AB14: -2.799436098 | AC14: 0.02955961552 | AD14: -3.138174018 | AE14: -0.02955961552 | AF14: 0.3455751919 | AG14: -1.884955592 | AH14: =IF(SHOW_CIRCLE="YES",xc+Aktina*COS(AG14),1000+xc+Aktina*COS(AG14)) -> 997.6463766 | AI14: -0.9755282581 | AJ14: 0.7093728083 | AK14: -3.215743644e-16 | AL14: 3.141592654 | AO14: 1.288052988 | AP14: -3.491383698 | AQ14: 0.4420177879 | AR14: 1.288052988 | AS14: -3.491383698 | AT14: 0.4420177879 | AV14: 1.130973355 | AW14: -1.034661234 | AX14: 2.118549422 | BC14: CYCLOID | BD14: =Platoskinishs*COS(2*PI()*XRONOSPRIN/Tperiod) -> 0.9079809995 | BE14: =2*ACOS(BD14/(4*Aktina)) -> 2.199114858 | BF14: fi | BG14: Platoskinishs | BH14: =4*Aktina*COS(arxikiGon) -> 2 | BI14: Taxtyths | BJ14: 0.2 | BK14: velocity for producing cycloid | BS14: Else
A15: 0.0425623685 | E15: GoNiaEF = Atn(efaptomeni) | Z15: -2.764601535 | AA15: 12 | AB15: -2.769034818 | AC15: 0.03511175706 | AD15: -3.137159371 | AE15: -0.03511175706 | AF15: 0.3769911184 | AG15: -1.759291886 | AH15: =IF(SHOW_CIRCLE="YES",xc+Aktina*COS(AG15),1000+xc+Aktina*COS(AG15)) -> 997.7071945 | AI15: -0.9911436254 | AJ15: 0.7803100891 | AK15: -0.3128689301 | AL15: 3.455751919 | AO15: 1.256637061 | AP15: -3.472909359 | AQ15: 0.3819660113 | AR15: 1.256637061 | AS15: -3.472909359 | AT15: 0.3819660113 | AV15: 1.256637061 | AW15: -1.223586599 | AX15: 2.193350266 | BB15: XPRIN | BC15: =Aktina*(LIPRIN-SIN(LIPRIN))-2*PI()*Aktina -> -2.446543722 | BD15: 0 | BE15: =-2*PI()*Platoskinishs*SIN(2*PI()/Tperiod*XRONOSPRIN)/Tperiod -> 3.945992175 | BF15: =2*Platoskinishs/SQRT(1-FIPRIN^2/(4*Aktina)^2)*DFI_DT/(4*Aktina)^2 -> 4.021166873 | BI15: GonTax | BJ15: =Taxtyths/Aktina -> 0.4 | BS15: fi = 0
A16: 0.05674982467 | E16: ForcBkataN = BAroS * Cos(GoNiaEF) 'äýíáìç âÜñïõò êáôÜ ôï íÞìá | Z16: -2.733185609 | AA16: 13 | AB16: -2.738815186 | AC16: 0.04112268716 | AD16: -3.135963076 | AE16: -0.04112268716 | AF16: 0.408407045 | AG16: -1.63362818 | AH16: =IF(SHOW_CIRCLE="YES",xc+Aktina*COS(AG16),1000+xc+Aktina*COS(AG16)) -> 997.7694899 | AI16: -0.9990133642 | AJ16: 0.85124737 | AK16: -0.6180339887 | AL16: 3.769911184 | AO16: 1.225221135 | AP16: -3.452557865 | AQ16: 0.3225241595 | AR16: 1.225221135 | AS16: -3.452557865 | AT16: 0.3225241595 | AV16: 1.382300768 | AW16: -1.420397264 | AX16: 2.243882656 | BB16: YPRIN | BC16: =-Aktina*(1-COS(LIPRIN)) -> -0.7938926261 | BD16: 0 | BE16: Platoskinishs*COS(2*PI()*R[4]C[-38]/Tperiod) | BI16: Aktina | BJ16: 0.5 | BK16: radius of cycle producing cycloid | BS16: End If
A17: 0.07093728083 | E17: aktinakamp = 2 * Sqr(-2 * theSIy1 * AKTina) 'aktinaKampyloTHTAS(THesix1, theSIy1, GonIa1) 'âñßóêù ôçí áêôßíá êáìðõëïôçôáò ôçò êáìðýëçò | Z17: -2.701769682 | AA17: 14 | AB17: -2.708791522 | AC17: 0.04758647377 | AD17: -3.134570814 | AE17: -0.04758647377 | AF17: 0.4398229715 | AG17: -1.507964474 | AH17: =IF(SHOW_CIRCLE="YES",xc+Aktina*COS(AG17),1000+xc+Aktina*COS(AG17)) -> 997.8322804 | AI17: -0.9990133642 | AJ17: 0.9221846508 | AK17: -0.9079809995 | AL17: 4.08407045 | AO17: 1.193805208 | AP17: -3.430349299 | AQ17: 0.2637508946 | AR17: 1.193805208 | AS17: -3.430349299 | AT17: 0.2637508946 | AV17: 1.507964474 | AW17: -1.621989405 | AX17: 2.269349665 | BC17: XRONOSPRIN | BD17: =Tperiod/40*(METRITIS-1) -> 5.178421501
A18: 0.085124737 | E18: ForcBkataN = BAroS * Cos(GoNiaEF) 'äýíáìç âÜñïõò êáôÜ ôï íÞìá | F18: =mass*g*COS(GoNiaEF) -> 15.86749302 | Z18: -2.670353756 | AA18: 15 | AB18: -2.678977955 | AC18: 0.05449673791 | AD18: -3.132968454 | AE18: -0.05449673791 | AF18: 0.471238898 | AG18: -1.382300768 | AH18: =IF(SHOW_CIRCLE="YES",xc+Aktina*COS(AG18),1000+xc+Aktina*COS(AG18)) -> 997.8945758 | AI18: -0.9911436254 | AJ18: 0.9931219316 | AK18: -1.175570505 | AL18: 4.398229715 | AO18: 1.162389282 | AP18: -3.406305578 | AQ18: 0.2057042187 | AR18: 1.162389282 | AS18: -3.406305578 | AT18: 0.2057042187 | AV18: 1.63362818 | AW18: -1.825183794 | AX18: 2.269349665 | BS18: PLATOSKINHSHS = 4 * AKTina * Cos(kykloeidhs.xthesi.Value * PI / 2 / 180)
A19: 0.09931219316 | E19: tashN = Mass * v2 / aktinaKamP2 + Abs(ForcBkataN) | Z19: -2.638937829 | AA19: 16 | AB19: -2.649388404 | AC19: 0.06184665998 | AD19: -3.131142078 | AE19: -0.06184665998 | AF19: 0.5026548246 | AG19: -1.256637061 | AH19: =IF(SHOW_CIRCLE="YES",xc+Aktina*COS(AG19),1000+xc+Aktina*COS(AG19)) -> 997.9553936 | AI19: -0.9755282581 | AJ19: 1.064059212 | AK19: -1.414213562 | AL19: 4.71238898 | AO19: 1.130973355 | AP19: -3.380450432 | AQ19: 0.1484414169 | AR19: 1.130973355 | AS19: -3.380450432 | AT19: 0.1484414169 | AV19: 1.759291886 | AW19: -2.026775935 | AX19: 2.243882656
A20: 0.1134996493 | E20: v2 = 2 * 10 * (Yarxiko0 - theSIy1) | H20: TASHNX | I20: =IF(BB2<0,F24*COS(ATAN(-1/BB2)),-F24*COS(ATAN(-1/BB2))) -> 18.65335677 | L20: efaptomeni = -Sin(fi) / (1 - Cos(fi)) | Z20: -2.607521902 | AA20: 17 | AB20: -2.62003657 | AC20: 0.0696289865 | AD20: -3.129077986 | AE20: -0.0696289865 | AF20: 0.5340707511 | AG20: -1.130973355 | AH20: =IF(SHOW_CIRCLE="YES",xc+Aktina*COS(AG20),1000+xc+Aktina*COS(AG20)) -> 998.0137748 | AI20: -0.9524135262 | AJ20: 1.134996493 | AK20: -1.618033989 | AL20: 5.026548246 | AO20: 1.099557429 | AP20: -3.352809375 | AQ20: 0.09201900052 | AR20: 1.099557429 | AS20: -3.352809375 | AT20: 0.09201900052 | AV20: 1.884955592 | AW20: -2.223586599 | AX20: 2.193350266
A21: 0.1276871055 | E21: 1/2MV²=MG(Yarxiko0-thesiy1) | H21: TASHNY | I21: =IF(BB2<0,F24*SIN(ATAN(-1/BB2)),-F24*SIN(ATAN(-1/BB2))) -> 25.67414302 | L21: cos1 = 1 / Sqr(1 + efaptomeni ^ 2) | Z21: -2.576105976 | AA21: 18 | AB21: -2.590935917 | AC21: 0.07783603725 | AD21: -3.126762712 | AE21: -0.07783603725 | AF21: 0.5654866776 | AG21: -1.005309649 | AH21: =IF(SHOW_CIRCLE="YES",xc+Aktina*COS(AG21),1000+xc+Aktina*COS(AG21)) -> 998.0687985 | AI21: -0.9221639628 | AJ21: 1.205933774 | AK21: -1.782013048 | AL21: 5.340707511 | AO21: 1.068141502 | AP21: -3.323409687 | AQ21: 0.0364926518 | AR21: 1.068141502 | AS21: -3.323409687 | AT21: 0.0364926518 | AV21: 2.010619298 | AW21: -2.412511965 | AX21: 2.118549422
A22: 0.1418745617 | E22: Yarxiko- | F22: =-Aktina*(1-COS(arxikiGon)) -> 0 | H22: tash | I22: =SQRT(TASHNX^2+TASHNY^2) -> 31.73498603 | L22: Sin1 = cos1 * efaptomeni | Z22: -2.544690049 | AA22: 19 | AB22: -2.562099663 | AC22: 0.08645971286 | AD22: -3.12418304 | AE22: -0.08645971286 | AF22: 0.5969026042 | AG22: -0.879645943 | AH22: =IF(SHOW_CIRCLE="YES",xc+Aktina*COS(AG22),1000+xc+Aktina*COS(AG22)) -> 998.1195971 | AI22: -0.8852566214 | AJ22: 1.276871055 | AK22: -1.902113033 | AL22: 5.654866776 | AO22: 1.036725576 | AP22: -3.292280381 | AQ22: -0.0180828315 | AR22: 1.036725576 | AS22: -3.292280381 | AT22: -0.0180828315 | AV22: 2.136283004 | AW22: -2.590572566 | AX22: 2.020659778
A23: 0.1560620178 | E23: v2 = | F23: =2*g*(Yarxiko-YCURRENT) -> 12.83707151 | H23: CYCLOID | L23: GoNiaEF = Atn(efaptomeni) | Z23: -2.513274123 | AA23: 20 | AB23: -2.533540762 | AC23: 0.09549150281 | AD23: -3.121326014 | AE23: -0.09549150281 | AF23: 0.6283185307 | AG23: -0.7539822369 | AH23: =IF(SHOW_CIRCLE="YES",xc+Aktina*COS(AG23),1000+xc+Aktina*COS(AG23)) -> 998.1653695 | AI23: -0.842273553 | AJ23: 1.347808336 | AK23: -1.975376681 | AL23: 5.969026042 | AO23: 1.005309649 | AP23: -3.259452178 | AQ23: -0.07165358996 | AR23: 1.005309649 | AS23: -3.259452178 | AT23: -0.07165358996 | AV23: 2.261946711 | AW23: -2.75496028 | AX23: 1.901225113
A24: 0.170249474 | E24: tashN = Mass * v2 / aktinaKamP2 + Abs(ForcBkataN) | F24: =mass*F23/V11+F18 -> 31.73498603 | L24: aktinakamp = 2 * Sqr(-2 * theSIy1 * AKTina) ' | Z24: -2.481858196 | AA24: 21 | AB24: -2.505271898 | AC24: 0.1049224938 | AD24: -3.118178952 | AE24: -0.1049224938 | AF24: 0.6597344573 | AG24: -0.6283185307 | AH24: =IF(SHOW_CIRCLE="YES",xc+Aktina*COS(AG24),1000+xc+Aktina*COS(AG24)) -> 998.2053936 | AI24: -0.7938926261 | AJ24: 1.418745617 | AK24: -2 | AL24: 6.283185307 | AO24: 0.9738937226 | AP24: -3.224957475 | AQ24: -0.1241667557 | AR24: 0.9738937226 | AS24: -3.224957475 | AT24: -0.1241667557 | AV24: 2.387610417 | AW24: -2.903082615 | AX24: 1.762128981
A25: 0.1844369302 | E25: baros | F25: =mass*g -> 19.6133 | G25: =g -> 9.80665 | Z25: -2.45044227 | AA25: 22 | AB25: -2.477305467 | AC25: 0.1147433786 | AD25: -3.114729457 | AE25: -0.1147433786 | AF25: 0.6911503838 | AG25: -0.5026548246 | AH25: =IF(SHOW_CIRCLE="YES",xc+Aktina*COS(AG25),1000+xc+Aktina*COS(AG25)) -> 998.2390385 | AI25: -0.7408768371 | AJ25: 1.489682897 | AK25: -1.975376681 | AL25: 5.969026042 | AO25: 0.9424777961 | AP25: -3.188830316 | AQ25: -0.1755705046 | AR25: 0.9424777961 | AS25: -3.188830316 | AT25: -0.1755705046 | AV25: 2.513274123 | AW25: -3.032603594 | AX25: 1.605565013
A26: 0.1986243863 | E26: =I20/15 -> 1.243557118 | F26: =I21/15 -> 1.711609534 | H26: =0 -> 0 | I26: =-F25/15 -> -1.307553333 | L26: xkentro = THesix1 - aktinakamp * Sin1 '(GoNiaEF) | Z26: -2.419026343 | AA26: 23 | AB26: -2.449653566 | AC26: 0.1249444652 | AD26: -3.110965431 | AE26: -0.1249444652 | AF26: 0.7225663103 | AG26: -0.3769911184 | AH26: =IF(SHOW_CIRCLE="YES",xc+Aktina*COS(AG26),1000+xc+Aktina*COS(AG26)) -> 998.2657734 | AI26: -0.6840622763 | AJ26: 1.560620178 | AK26: -1.902113033 | AL26: 5.654866776 | AO26: 0.9110618695 | AP26: -3.151106352 | AQ26: -0.2258141073 | AR26: 0.9110618695 | AS26: -3.151106352 | AT26: -0.2258141073 | AV26: 2.638937829 | AW26: -3.141480592 | AX26: 1.434002316 | BR26: Function aktinaKampyloTHTAS(xa1, ya1, theta123) 'DINEI AKTINA KYMPLOTHTAS ME VASH X PSI THETA | CC26: Function APOXSEF(x, AKTina) As DYODED
A27: 0.2128118425 | E27: TASHNX | F27: TASHNY | H27: BAROSX | I27: BAROSY | L27: ykentro = theSIy1 + aktinakamp * cos1 '(GoNiaEF) | Z27: -2.387610417 | AA27: 24 | AB27: -2.422327982 | AC27: 0.1355156863 | AD27: -3.106875088 | AE27: -0.1355156863 | AF27: 0.7539822369 | AG27: -0.2513274123 | AH27: =IF(SHOW_CIRCLE="YES",xc+Aktina*COS(AG27),1000+xc+Aktina*COS(AG27)) -> 998.2851767 | AI27: -0.6243449436 | AJ27: 1.631557459 | AK27: -1.782013048 | AL27: 5.340707511 | AO27: 0.879645943 | AP27: -3.111822812 | AQ27: -0.2748479795 | AR27: 0.879645943 | AS27: -3.111822812 | AT27: -0.2748479795 | AV27: 2.764601535 | AW27: -3.227996555 | AX27: 1.250146536 | BR27: Dim DyOverDx, D2yOverDx2 | CC27: Dim Theta0, THEta11, theTA22, thETA33, DTheTa, dTheTa22, TheTaTel 'thetatel: ôï áðïôÝëåóìá ôùí õðïëïãéóìþí
A28: 0.2269992987 | B28: R_KAMP | C28: =V_2/(tash/mass-g*COS(GoNiaEF)) -> 1.618033989 | E28: =XCURRENT -> -2.674643116 | F28: =YCURRENT -> -0.6545084972 | H28: =E28 -> -2.674643116 | I28: =F28 -> -0.6545084972 | Z28: -2.35619449 | AA28: 25 | AB28: -2.395340181 | AC28: 0.1464466094 | AD28: -3.102446962 | AE28: -0.1464466094 | AF28: 0.7853981634 | AG28: -0.1256637061 | AH28: =IF(SHOW_CIRCLE="YES",xc+Aktina*COS(AG28),1000+xc+Aktina*COS(AG28)) -> 998.2969425 | AI28: -0.5626666168 | AJ28: 1.70249474 | AK28: -1.618033989 | AL28: 5.026548246 | AO28: 0.8482300165 | AP28: -3.071018466 | AQ28: -0.3226237306 | AR28: 0.8482300165 | AS28: -3.071018466 | AT28: -0.3226237306 | AV28: 2.890265241 | AW28: -3.290787075 | AX28: 1.056897187 | BR28: If theta123 = 0 Then | CC28: Dim XzhTo, OldTheta
A29: 0.2411867548 | C29: =aktinakamp -> 1.618033989 | E29: =E28+E26 -> -1.431085998 | F29: 1.057101037 | H29: -2.674643116 | I29: -1.962061831 | Z29: -2.324778564 | AA29: 26 | AB29: -2.368701295 | AC29: 0.157726447 | AD29: -3.097669922 | AE29: -0.157726447 | AF29: 0.8168140899 | AG29: 1.110223025e-15 | AH29: =IF(SHOW_CIRCLE="YES",xc+Aktina*COS(AG29),1000+xc+Aktina*COS(AG29)) -> 998.3008851 | AI29: -0.5 | AJ29: 1.773432021 | AK29: -1.414213562 | AL29: 4.71238898 | AO29: 0.8168140899 | AP29: -3.028733582 | AQ29: -0.3690942119 | AR29: 0.8168140899 | AS29: -3.028733582 | AT29: -0.3690942119 | AV29: 3.015928947 | AW29: -3.328861907 | AX29: 0.857301929 | BR29: aktinaKampyloTHTAS = 0 | CC29: Dim METritis2
A30: 0.255374211 | E30: =-1/20*F26+18/20*E26+E28 -> -1.641022186 | F30: =1/20*E26+18/20*F26+F28 -> 0.9481179397 | H30: =-1/20*I26+18/20*H26+H28 -> -2.609265449 | I30: =1/20*H26+18/20*I26+I28 -> -1.831306497 | Z30: -2.293362637 | AA30: 27 | AB30: -2.342422111 | AC30: 0.1693440673 | AD30: -3.09253318 | AE30: -0.1693440673 | AF30: 0.8482300165 | AG30: 0.1256637061 | AH30: =IF(SHOW_CIRCLE="YES",xc+Aktina*COS(AG30),1000+xc+Aktina*COS(AG30)) -> 998.2969425 | AI30: -0.4373333832 | AJ30: 1.844369302 | AK30: -1.175570505 | AL30: 4.398229715 | AO30: 0.7853981634 | AP30: -2.985009889 | AQ30: -0.4142135624 | AR30: 0.7853981634 | AS30: -2.985009889 | AT30: -0.4142135624 | AV30: 3.141592654 | AW30: -3.341620588 | AX30: 0.6545084972 | BR30: Exit Function | CC30: PI = 4 * Atn(1)
A31: 0.2695616672 | E31: =1/20*F26+18/20*E26+E28 -> -1.469861233 | F31: =-1/20*E26+18/20*F26+F28 -> 0.8237622279 | H31: =1/20*I26+18/20*H26+H28 -> -2.740020782 | I31: =-1/20*H26+18/20*I26+I28 -> -1.831306497 | Z31: -2.261946711 | AA31: 28 | AB31: -2.316513061 | AC31: 0.1812880051 | AD31: -3.087026303 | AE31: -0.1812880051 | AF31: 0.879645943 | AG31: 0.2513274123 | AH31: =IF(SHOW_CIRCLE="YES",xc+Aktina*COS(AG31),1000+xc+Aktina*COS(AG31)) -> 998.2851767 | AI31: -0.3756550564 | AJ31: 1.915306582 | AK31: -0.9079809995 | AL31: 4.08407045 | AO31: 0.7539822369 | AP31: -2.939890539 | AQ31: -0.4579372548 | AR31: 0.7539822369 | AS31: -2.939890539 | AT31: -0.4579372548 | AV31: 3.26725636 | AW31: -3.328861907 | AX31: 0.4517150654 | BR31: End If | CC31: XzhTo = x ' TO X sto opoio thelo na vro ti gonia FI symfona me ton typo x=-xk+a*theta-a*sin(theta)
A32: 0.2837491233 | E32: =E29 -> -1.431085998 | F32: 1.057101037 | H32: =H29 -> -2.674643116 | I32: -1.962061831 | Z32: -2.230530784 | AA32: 29 | AB32: -2.290984213 | AC32: 0.1935464732 | AD32: -3.081139225 | AE32: -0.1935464732 | AF32: 0.9110618695 | AG32: 0.3769911184 | AH32: =IF(SHOW_CIRCLE="YES",xc+Aktina*COS(AG32),1000+xc+Aktina*COS(AG32)) -> 998.2657734 | AI32: -0.3159377237 | AJ32: 1.986243863 | AK32: -0.6180339887 | AL32: 3.769911184 | AO32: 0.7225663103 | AP32: -2.893420057 | AQ32: -0.5002221393 | AR32: 0.7225663103 | AS32: -2.893420057 | AT32: -0.5002221393 | AV32: 3.392920066 | AW32: -3.290787075 | AX32: 0.2521198071 | BR32: DyOverDx = -Sin(theta123) / (1 - Cos(theta123)) 'dy/dx OS SYNARTHSH TOY X | CC32: Theta0 = 0
A33: 0.2979365795 | C33: =VXCURRENT -> 2.898615597 | Z33: -2.199114858 | AA33: 30 | AB33: -2.265845258 | AC33: 0.2061073739 | AD33: -3.074862253 | AE33: -0.2061073739 | AF33: 0.9424777961 | AG33: 0.5026548246 | AH33: =IF(SHOW_CIRCLE="YES",xc+Aktina*COS(AG33),1000+xc+Aktina*COS(AG33)) -> 998.2390385 | AI33: -0.2591231629 | AJ33: 2.057181144 | AK33: -0.3128689301 | AL33: 3.455751919 | AO33: 0.6911503838 | AP33: -2.845644306 | AQ33: -0.5410264856 | AR33: 0.6911503838 | AS33: -2.845644306 | AT33: -0.5410264856 | AV33: 3.518583772 | AW33: -3.227996555 | AX33: 0.05887045885 | BR33: D2yOverDx2 = 1 / (AKTina * (1 - Cos(theta123)) ^ 2) | CC33: DTheTa = 2 * PI / 50
A34: 0.3121240357 | C34: VX | D34: VY | E34: V²/r | H34: =H26+E26 -> 1.243557118 | I34: =I26+F26 -> 0.4040562011 | Z34: -2.167698931 | AA34: 31 | AB34: -2.241105505 | AC34: 0.2189583111 | AD34: -3.068186079 | AE34: -0.2189583111 | AF34: 0.9738937226 | AG34: 0.6283185307 | AH34: =IF(SHOW_CIRCLE="YES",xc+Aktina*COS(AG34),1000+xc+Aktina*COS(AG34)) -> 998.2053936 | AI34: -0.2061073739 | AJ34: 2.128118425 | AK34: 1.408812303e-15 | AL34: 3.141592654 | AO34: 0.6597344573 | AP34: -2.796610434 | AQ34: -0.5803100248 | AR34: 0.6597344573 | AS34: -2.796610434 | AT34: -0.5803100248 | AV34: 3.644247478 | AW34: -3.141480592 | AX34: -0.1249853217 | BR34: alfaparagogos = DyOverDx | CC34: dTheTa22 = DTheTa
A35: 0.3263114918 | C35: =ABS(VXCURRENT)/5*SIGN(XCURRENT-XPRIN) -> -0.5797231195 | D35: =ABS(VYCURRENT)/5*SIGN(YCURRENT-YPRIN) -> 0.4211935008 | H35: Forcex | I35: forcey | Z35: -2.136283004 | AA35: 32 | AB35: -2.216773866 | AC35: 0.2320866025 | AD35: -3.061101792 | AE35: -0.2320866025 | AF35: 1.005309649 | AG35: 0.7539822369 | AH35: =IF(SHOW_CIRCLE="YES",xc+Aktina*COS(AG35),1000+xc+Aktina*COS(AG35)) -> 998.1653695 | AI35: -0.157726447 | AJ35: 2.199055706 | AK35: 0.3128689301 | AL35: 2.827433388 | AO35: 0.6283185307 | AP35: -2.746366831 | AQ35: -0.6180339887 | AR35: 0.6283185307 | AS35: -2.746366831 | AT35: -0.6180339887 | AV35: 3.769911184 | AW35: -3.032603594 | AX35: -0.2965480191 | BR35: vetaparagogos = D2yOverDx2 | CC35: THEta11 = Theta0:
A36: 0.340498948 | C36: VX | D36: VY | H36: =BC2 -> -2.674643116 | I36: =BC3 -> -0.6545084972 | Z36: =Z35+vimaex -> -2.104867078 | AA36: 33 | AB36: -2.192858852 | AC36: 0.2454792921 | AD36: -3.053600879 | AE36: -0.2454792921 | AF36: 1.036725576 | AG36: 0.879645943 | AH36: =IF(SHOW_CIRCLE="YES",xc+Aktina*COS(AG36),1000+xc+Aktina*COS(AG36)) -> 998.1195971 | AI36: =yc+Aktina*SIN(AG36) -> -0.1147433786 | AJ36: 2.269992987 | AK36: =Platoskinishs*COS(2*PI()*AJ36/Tperiod) -> 0.6180339887 | AL36: =2*ACOS(AK36/(4*Aktina)) -> 2.513274123 | AO36: 0.5969026042 | AP36: -2.694963082 | AQ36: -0.6541611485 | AR36: 0.5969026042 | AS36: -2.694963082 | AT36: -0.6541611485 | AV36: 3.89557489 | AW36: -2.903082615 | AX36: -0.4531119871 | BE36: Sub vafoEXILEIGMENI(xc) 'èÝëù íá âÜöù ôçí åîåéëéãìÝíç áðü ôç èÝóç ðïõ áíáñôÜôá´' | BR36: If vetaparagogos <> 0 Then | CC36: OldTheta = THEta11
A37: 0.3546864042 | C37: =XCURRENT -> -2.674643116 | D37: =YCURRENT -> -0.6545084972 | H37: =H36+H34 -> -1.431085998 | I37: -0.2504522961 | Z37: -2.073451151 | AA37: 34 | AB37: -2.169368562 | AC37: 0.2591231629 | AD37: -3.045675243 | AE37: -0.2591231629 | AF37: 1.068141502 | AG37: 1.005309649 | AH37: =IF(SHOW_CIRCLE="YES",xc+Aktina*COS(AG37),1000+xc+Aktina*COS(AG37)) -> 998.0687985 | AI37: -0.07783603725 | AJ37: =AJ36+Tperiod/40 -> 2.340930267 | AK37: 0.9079809995 | AL37: 2.199114858 | AO37: 0.5654866776 | AP37: =-PI()*Aktina-Length*SIN(AO37) -> -2.642449917 | AQ37: =2*Aktina-Length*COS(AO37) -> -0.688655851 | AR37: 0.5654866776 | AS37: =-PI()*Aktina-Length*SIN(AR37) -> -2.642449917 | AT37: =2*Aktina-Length*COS(AR37) -> -0.688655851 | AV37: 4.021238597 | AW37: =rx+R_KAMP*COS(AV37) -> -2.75496028 | AX37: =ry+R_KAMP*SIN(AV37) -> -0.5922081184 | BE37: 'ôï åêêñåìÝò ìÝ÷ñé ôï óçìåßï åðáöÞò x3 óçìåßï åðáöÞò íÞìáôïò xc êÝíôñï êýêëïõ | BR37: aktinaKampyloTHTAS = (1 + alfaparagogos ^ 2) ^ 1.5 / vetaparagogos | CC37: For THEta11 = 0 To 2 * PI Step DTheTa
A38: 0.3688738603 | C38: =C37+C35 -> -3.254366235 | D38: -0.2333149964 | H38: =-1/20*I34+18/20*H34+H36 -> -1.575644519 | I38: =1/20*H34+18/20*I34+I36 -> -0.2286800603 | Z38: -2.042035225 | AA38: 35 | AB38: -2.146310677 | AC38: 0.2730047501 | AD38: -3.037317201 | AE38: -0.2730047501 | AF38: 1.099557429 | AG38: 1.130973355 | AH38: =IF(SHOW_CIRCLE="YES",xc+Aktina*COS(AG38),1000+xc+Aktina*COS(AG38)) -> 998.0137748 | AI38: -0.04758647377 | AJ38: 2.411867548 | AK38: 1.175570505 | AL38: 1.884955592 | AO38: 0.5340707511 | AP38: -2.588879158 | AQ38: -0.721484054 | AR38: =AR37-DGON -> 0.5340707511 | AS38: -2.588879158 | AT38: -0.721484054 | AV38: 4.146902303 | AW38: -2.590572566 | AX38: -0.7116427839 | BE38: PI = 4 * Atn(1) | BR38: antiakt = 1 / aktinaKampyloTHTAS | CC38: x1 = xOFTheta(OldTheta, AKTina)
A39: 0.3830613165 | C39: =-1/20*D35+18/20*C35+C37 -> -3.217453598 | D39: =1/20*C35+18/20*D35+D37 -> -0.3044205025 | H39: =1/20*I34+18/20*H34+H36 -> -1.535238899 | I39: =-1/20*H34+18/20*I34+I36 -> -0.3530357721 | Z39: -2.010619298 | AA39: 36 | AB39: -2.12369245 | AC39: 0.2871103542 | AD39: -3.028519502 | AE39: -0.2871103542 | AF39: 1.130973355 | AG39: 1.256637061 | AH39: =IF(SHOW_CIRCLE="YES",xc+Aktina*COS(AG39),1000+xc+Aktina*COS(AG39)) -> 997.9553936 | AI39: -0.02447174185 | AJ39: 2.482804829 | AK39: 1.414213562 | AL39: 1.570796327 | AO39: 0.5026548246 | AP39: -2.534303675 | AQ39: -0.7526133601 | AR39: 0.5026548246 | AS39: -2.534303675 | AT39: -0.7526133601 | AV39: 4.272566009 | AW39: -2.412511965 | AX39: -0.8095324276 | BE39: X2 = xc | BR39: End If | CC39: X2 = xOFTheta(THEta11, AKTina)
A40: 0.3972487727 | C40: =1/20*D35+18/20*C35+C37 -> -3.175334248 | D40: =-1/20*C35+18/20*D35+D37 -> -0.2464481905 | H40: =H37 -> -1.431085998 | I40: -0.2504522961 | Z40: -1.979203372 | AA40: 37 | AB40: -2.1015207 | AC40: 0.3014260547 | AD40: -3.019275326 | AE40: -0.3014260547 | AF40: 1.162389282 | AG40: 1.382300768 | AH40: =IF(SHOW_CIRCLE="YES",xc+Aktina*COS(AG40),1000+xc+Aktina*COS(AG40)) -> 997.8945758 | AI40: -0.008856374636 | AJ40: 2.55374211 | AK40: 1.618033989 | AL40: 1.256637061 | AO40: 0.471238898 | AP40: -2.478777326 | AQ40: -0.7820130484 | AR40: 0.471238898 | AS40: -2.478777326 | AT40: -0.7820130484 | AV40: 4.398229715 | AW40: -2.223586599 | AX40: -0.8843332714 | BE40: AKTina = 20 | BR40: End Function | CC40: If x1 = XzhTo Then
A41: 0.4114362288 | C41: =C38 -> -3.254366235 | D41: -0.2333149964 | Z41: -1.947787445 | AA41: 38 | AB41: -2.079801806 | AC41: 0.3159377237 | AD41: -3.009578292 | AE41: -0.3159377237 | AF41: 1.193805208 | AG41: 1.507964474 | AH41: =IF(SHOW_CIRCLE="YES",xc+Aktina*COS(AG41),1000+xc+Aktina*COS(AG41)) -> 997.8322804 | AI41: -0.0009866357859 | AJ41: 2.624679391 | AK41: 1.782013048 | AL41: 0.9424777961 | AO41: 0.4398229715 | AP41: -2.42235491 | AQ41: -0.8096541049 | AR41: 0.4398229715 | AS41: -2.42235491 | AT41: -0.8096541049 | AV41: 4.523893421 | AW41: -2.026775935 | AX41: -0.9348656612 | BE41: TaxythS = 0.2 | CC41: TheTaTel = THEta11
A42: 0.425623685 | C42: TANTHETA | Z42: -1.916371519 | AA42: 39 | AB42: -2.058541702 | AC42: 0.3306310399 | AD42: -2.999422471 | AE42: -0.3306310399 | AF42: 1.225221135 | AG42: 1.63362818 | AH42: =IF(SHOW_CIRCLE="YES",xc+Aktina*COS(AG42),1000+xc+Aktina*COS(AG42)) -> 997.7694899 | AI42: -0.0009866357859 | AJ42: 2.695616672 | AK42: 1.902113033 | AL42: 0.6283185307 | AO42: 0.408407045 | AP42: -2.365092108 | AQ42: -0.8355092514 | AR42: 0.408407045 | AS42: -2.365092108 | AT42: -0.8355092514 | AV42: 4.649557127 | AW42: -1.825183794 | AX42: -0.9603326711 | BE42: GonTax = TaxythS / AKTina | CC42: GoTo ypologizoy
A43: 0.4398111412 | C43: =VYCURRENT/VXCURRENT -> -0.726542528 | D43: =vely/velx -> -0.726542528 | Z43: -1.884955592 | AA43: 40 | AB43: -2.037745865 | AC43: 0.3454915028 | AD43: -2.988802381 | AE43: -0.3454915028 | AF43: 1.256637061 | AG43: 1.759291886 | AH43: =IF(SHOW_CIRCLE="YES",xc+Aktina*COS(AG43),1000+xc+Aktina*COS(AG43)) -> 997.7071945 | AI43: -0.008856374636 | AJ43: 2.766553952 | AK43: 1.975376681 | AL43: 0.3141592654 | AO43: 0.3769911184 | AP43: -2.307045432 | AQ43: -0.8595529718 | AR43: 0.3769911184 | AS43: -2.307045432 | AT43: -0.8595529718 | AV43: 4.775220833 | AW43: -1.621989405 | AX43: -0.9603326711 | BE43: xronos = X2 / TaxythS '×2 ç èÝóç ôïõ êÝíôñïõ ôùí êýêëùí, ïðüôå ï ÷ñüíïò (áñíçôéêüò) áíôéóôïé÷åß óôç èÝóç | CC43: End If
A44: 0.4539985973 | C44: =-1/C43 -> 1.37638192 | D44: KATHETOS | Z44: -1.853539666 | AA44: 41 | AB44: -2.017419317 | AC44: 0.360504447 | AD44: -2.977713002 | AE44: -0.360504447 | AF44: 1.288052988 | AG44: 1.884955592 | AH44: =IF(SHOW_CIRCLE="YES",xc+Aktina*COS(AG44),1000+xc+Aktina*COS(AG44)) -> 997.6463766 | AI44: -0.02447174185 | AJ44: 2.837491233 | AK44: 2 | AL44: 0 | AO44: 0.3455751919 | AP44: -2.248272167 | AQ44: -0.8817615379 | AR44: 0.3455751919 | AS44: -2.248272167 | AT44: -0.8817615379 | AV44: 4.90088454 | AW44: -1.420397264 | AX44: -0.9348656612 | BE44: theta = xronos * GonTax 'ãùíßá è ãéá ôç èÝóç ôïõ óçìåßïõ ðÜíù óôïí êýêëï | CC44: A11 = (x1 - XzhTo) * (X2 - XzhTo) 'YPOLOGIZO TH DIAFORA THELO NA PSAXO THN TIMH MECHRI SOTOY Á11<0
A45: 0.4681860535 | C45: =1/SQRT(1+C44^2)*SIGN(TASHNX) -> 0.5877852523 | D45: =ABS(C44*NX)*SIGN(TASHNY) -> 0.8090169944 | G45: =XCURRENT -> -2.674643116 | Z45: -1.822123739 | AA45: 42 | AB45: -1.997566616 | AC45: 0.3756550564 | AD45: -2.966149777 | AE45: -0.3756550564 | AF45: 1.319468915 | AG45: 2.010619298 | AH45: =IF(SHOW_CIRCLE="YES",xc+Aktina*COS(AG45),1000+xc+Aktina*COS(AG45)) -> 997.5879955 | AI45: -0.04758647377 | AJ45: 2.908428514 | AK45: 1.975376681 | AL45: 0.3141592654 | AO45: 0.3141592654 | AP45: -2.188830316 | AQ45: -0.9021130326 | AR45: 0.3141592654 | AS45: -2.188830316 | AT45: -0.9021130326 | AV45: 5.026548246 | AW45: -1.223586599 | AX45: -0.8843332714 | BE45: x1 = xc - AKTina * Sin(theta) 'âñßóêù ôç èåóç óôçí êõêëïåéäç | CC45: If A11 < 0 Then 'AN H MIA TIMH EINAI MEGALYTERH H ALLH MIKROTERH THELO NA PLHSIASO OSO TO DYNATON PIO POLY
A46: 0.4823735097 | C46: NX | D46: NY | Z46: -1.790707813 | AA46: 43 | AB46: -1.978191852 | AC46: 0.3909283793 | AD46: -2.954108614 | AE46: -0.3909283793 | AF46: 1.350884841 | AG46: 2.136283004 | AH46: =IF(SHOW_CIRCLE="YES",xc+Aktina*COS(AG46),1000+xc+Aktina*COS(AG46)) -> 997.5329717 | AI46: -0.07783603725 | AJ46: 2.979365795 | AK46: 1.902113033 | AL46: 0.6283185307 | AO46: 0.2827433388 | AP46: -2.128778539 | AQ46: -0.9205873714 | AR46: 0.2827433388 | AS46: -2.128778539 | AT46: -0.9205873714 | AV46: 5.152211952 | AW46: -1.034661234 | AX46: -0.8095324276 | BE46: y1 = -AKTina + AKTina * Cos(theta) | CC46: METritis2 = 0
A47: 0.4965609658 | B47: V² | C47: =VXCURRENT^2+VYCURRENT^2 -> 12.83707151 | Z47: -1.759291886 | AA47: 44 | AB47: -1.959298644 | AC47: 0.4063093427 | AD47: -2.941585895 | AE47: -0.4063093427 | AF47: 1.382300768 | AG47: 2.261946711 | AH47: =IF(SHOW_CIRCLE="YES",xc+Aktina*COS(AG47),1000+xc+Aktina*COS(AG47)) -> 997.4821731 | AI47: -0.1147433786 | AJ47: 3.050303076 | AK47: 1.782013048 | AL47: 0.9424777961 | AO47: 0.2513274123 | AP47: -2.068176101 | AQ47: -0.9371663223 | AR47: 0.2513274123 | AS47: -2.068176101 | AT47: -0.9371663223 | AV47: 5.277875658 | AW47: -0.856600633 | AX47: -0.7116427839 | BE47: 'Yarxiko0 = y1 | CC47: dTheTa22 = dTheTa22 / 2 'HETO TH MISH AYJHSH OPOTE FRISKO TH NEA TIMH X3
A48: 0.510748422 | C48: =V_2/R_KAMP*NX -> 4.663339193 | D48: =V_2/R_KAMP*NY -> 6.418535754 | E48: =mass*SQRT(C48^2+D48^2) -> 15.86749302 | Z48: -1.727875959 | AA48: 45 | AB48: -1.940890136 | AC48: 0.4217827675 | AD48: -2.928578477 | AE48: -0.4217827675 | AF48: 1.413716694 | AG48: 2.387610417 | AH48: =IF(SHOW_CIRCLE="YES",xc+Aktina*COS(AG48),1000+xc+Aktina*COS(AG48)) -> 997.4364008 | AI48: -0.157726447 | AJ48: 3.121240357 | AK48: 1.618033989 | AL48: 1.256637061 | AO48: 0.2199114858 | AP48: -2.00708281 | AQ48: -0.9518335239 | AR48: 0.2199114858 | AS48: -2.00708281 | AT48: -0.9518335239 | AV48: 5.403539364 | AW48: -0.6922129187 | AX48: -0.5922081184 | BE48: 'YkYkLiKo = y1 | CC48: thETA33 = OldTheta + dTheTa22 'VRISKO TH MIA TIMHSTH MESH
A49: 0.5249358782 | C49: =C48/15*mass -> 0.621778559 | D49: =D48/15*mass -> 0.8558047672 | Z49: -1.696460033 | AA49: 46 | AB49: -1.922968993 | AC49: 0.4373333832 | AD49: -2.915083694 | AE49: -0.4373333832 | AF49: 1.445132621 | AG49: 2.513274123 | AH49: =IF(SHOW_CIRCLE="YES",xc+Aktina*COS(AG49),1000+xc+Aktina*COS(AG49)) -> 997.3963766 | AI49: -0.2061073739 | AJ49: 3.192177637 | AK49: 1.414213562 | AL49: 1.570796327 | AO49: 0.1884955592 | AP49: -1.945558956 | AQ49: -0.9645745015 | AR49: 0.1884955592 | AS49: -1.945558956 | AT49: -0.9645745015 | AV49: 5.52920307 | AW49: -0.5440905835 | AX49: -0.4531119871 | BE49: ThetA2 = PI - theta 'ãùíßá ãéá ôçí ÅÎÅÉËÉÃÌÅÍÇ | CC49: x3 = xOFTheta(thETA33, AKTina)
A50: 0.5391233343 | B50: V²/R | C50: V² NX | D50: V² NY | F50: mv²/r=TASH-M*G*SIN(GONIAEF) | Z50: -1.665044106 | AA50: 47 | AB50: -1.905537398 | AC50: 0.4529458433 | AD50: -2.901099362 | AE50: -0.4529458433 | AF50: 1.476548547 | AG50: 2.638937829 | AH50: =IF(SHOW_CIRCLE="YES",xc+Aktina*COS(AG50),1000+xc+Aktina*COS(AG50)) -> 997.3627318 | AI50: -0.2591231629 | AJ50: 3.263114918 | AK50: 1.175570505 | AL50: 1.884955592 | AO50: 0.1570796327 | AP50: -1.883665257 | AQ50: -0.9753766812 | AR50: 0.1570796327 | AS50: -1.883665257 | AT50: -0.9753766812 | AV50: 5.654866776 | AW50: -0.414569605 | AX50: -0.2965480191 | BE50: x3 = X2 + AKTina * Sin(ThetA2) 'èÝóç ãéá ôçí ÅÎÅÉËÉÃÌÅÍÇ | CC50: xana:
A51: 0.5533107905 | C51: =XCURRENT -> -2.674643116 | D51: =YCURRENT -> -0.6545084972 | F51: =SQRT(TASHNX^2+TASHNY^2)-mass*(-g)*SIN(GoNiaEF) -> 20.20657754 | Z51: -1.63362818 | AA51: 48 | AB51: -1.888597053 | AC51: 0.4686047402 | AD51: -2.886623781 | AE51: -0.4686047402 | AF51: 1.507964474 | AG51: 2.764601535 | AH51: =IF(SHOW_CIRCLE="YES",xc+Aktina*COS(AG51),1000+xc+Aktina*COS(AG51)) -> 997.3359969 | AI51: -0.3159377237 | AJ51: 3.334052199 | AK51: 0.9079809995 | AL51: 2.199114858 | AO51: 0.1256637061 | AP51: -1.821462794 | AQ51: -0.9842294026 | AR51: 0.1256637061 | AS51: -1.821462794 | AT51: -0.9842294026 | AV51: 5.780530483 | AW51: -0.3056926065 | AX51: -0.1249853217 | BE51: y3 = AKTina + AKTina * Cos(ThetA2) | CC51: If METritis2 > 30 Then
A52: 0.5674982467 | C52: =C51+C49 -> -2.052864557 | D52: 0.20129627 | F52: =SQRT(TASHNX^2+TASHNY^2) -> 31.73498603 | G52: TASH | S52: CIRCULAR PENDULUM | Z52: -1.602212253 | AA52: 49 | AB52: -1.872149173 | AC52: 0.4842946205 | AD52: -2.871655734 | AE52: -0.4842946205 | AF52: 1.5393804 | AG52: 2.890265241 | AH52: =IF(SHOW_CIRCLE="YES",xc+Aktina*COS(AG52),1000+xc+Aktina*COS(AG52)) -> 997.3165936 | AI52: -0.3756550564 | AJ52: 3.40498948 | AK52: 0.6180339887 | AL52: 2.513274123 | AO52: 0.09424777961 | AP52: -1.759012953 | AQ52: -0.9911239292 | AR52: 0.09424777961 | AS52: -1.759012953 | AT52: -0.9911239292 | AV52: 5.906194189 | AW52: -0.2191766433 | AX52: 0.05887045885 | BE52: kykloeidhs.DrawWidth = 5 | CC52: 'MsgBox ("OXI SYGLISI")
A53: 0.5816857028 | C53: =-1/20*D49+18/20*C49+C51 -> -2.157832651 | D53: =1/20*C49+18/20*D49+D51 -> 0.1468047212 | F53: =mass*(-g) -> -19.6133 | Z53: -1.570796327 | AA53: 50 | AB53: -1.85619449 | AC53: 0.5 | AD53: -2.85619449 | AE53: -0.5 | AF53: 1.570796327 | AG53: 3.015928947 | AH53: =IF(SHOW_CIRCLE="YES",xc+Aktina*COS(AG53),1000+xc+Aktina*COS(AG53)) -> 997.3048278 | AI53: -0.4373333832 | AJ53: 3.475926761 | AK53: 0.3128689301 | AL53: 2.827433388 | AO53: 0.06283185307 | AP53: -1.696377366 | AQ53: -0.9960534569 | AR53: 0.06283185307 | AS53: -1.696377366 | AT53: -0.9960534569 | AV53: 6.031857895 | AW53: -0.1563861237 | AX53: 0.2521198071 | BE53: 'kykloeidhs.PSet (x3, y3) | CC53: Exit Function
A54: 0.595873159 | C54: =1/20*D49+18/20*C49+C51 -> -2.072252174 | D54: =-1/20*C49+18/20*D49+D51 -> 0.08462686533 | F54: =SIN(GoNiaEF) -> -0.5877852523 | G54: =F54*F53 -> 11.52840849 | S54: MEGISTOy | T54: =2*Aktina-(Length-AD*1) -> 1 | Z54: -1.5393804 | AA54: 51 | AB54: -1.840733247 | AC54: 0.5157053795 | AD54: -2.840239807 | AE54: -0.5157053795 | AF54: 1.602212253 | AG54: 3.141592654 | AH54: =IF(SHOW_CIRCLE="YES",xc+Aktina*COS(AG54),1000+xc+Aktina*COS(AG54)) -> 997.3008851 | AI54: -0.5 | AJ54: 3.546864042 | AK54: -2.070370785e-14 | AL54: 3.141592654 | AO54: 0.03141592654 | AP54: -1.633617845 | AQ54: -0.9990131207 | AR54: 0.03141592654 | AS54: -1.633617845 | AT54: -0.9990131207 | AV54: 6.157521601 | AW54: -0.1183112919 | AX54: 0.4517150654 | BE54: 'kykloeidhs.PSet (-PI * AKTina, 2 * AKTina) | CC54: End If
A55: 0.6100606151 | C55: =C52 -> -2.052864557 | D55: 0.20129627 | F55: =COS(GoNiaEF) -> 0.8090169944 | G55: =F55*F53 -> -15.86749302 | S55: YCIRCULAR | T55: =BB8 -> -0.2760020001 | Z55: -1.507964474 | AA55: 52 | AB55: -1.825765199 | AC55: 0.5313952598 | AD55: -2.823791928 | AE55: -0.5313952598 | AF55: 1.63362818 | AJ55: 3.617801322 | AK55: -0.3128689301 | AL55: 3.455751919 | AO55: -1.387778781e-15 | AP55: -1.570796327 | AQ55: -1 | AR55: -1.387778781e-15 | AS55: -1.570796327 | AT55: -1 | AV55: 6.283185307 | AW55: -0.1055526106 | AX55: 0.6545084972 | BE55: kykloeidhs.DrawWidth = 2
A56: 0.6242480713 | S56: V2= | T56: =SQRT(2*g*(T54-T55)) -> 5.002660295 | Z56: -1.476548547 | AA56: 53 | AB56: -1.811289618 | AC56: 0.5470541567 | AD56: -2.806851583 | AE56: -0.5470541567 | AF56: 1.665044106 | AJ56: 3.688738603 | AK56: -0.6180339887 | AL56: 3.769911184 | AO56: -0.03141592654 | AP56: -1.507974809 | AQ56: -0.9990131207 | AR56: -0.03141592654 | AS56: -1.507974809 | AT56: -0.9990131207 | BE56: X11 = -PI * AKTina: y11 = 2 * AKTina | CC56: If Abs(x3 - XzhTo) < 0.0000001 Then
A57: 0.6384355275 | E57: mass*v²/r | F57: =mass*ABS(V_2/R_KAMP) -> 15.86749302 | R57: A= | S57: V2/R | T57: =T56^2/Length -> 12.51330501 | U57: EFAPTOMENH | V57: =-1/ATAN2(BA8-BA9,BB8-BB9) -> 1.445296647 | Z57: -1.445132621 | AA57: 54 | AB57: -1.797305286 | AC57: 0.5626666168 | AD57: -2.789419988 | AE57: -0.5626666168 | AF57: 1.696460033 | AJ57: 3.759675884 | AK57: -0.9079809995 | AL57: 4.08407045 | AO57: -0.06283185307 | AP57: -1.445215288 | AQ57: -0.9960534569 | AR57: -0.06283185307 | AS57: -1.445215288 | AT57: -0.9960534569 | BE57: fi1 = 0 | CC57: TheTaTel = (thETA33 + THEta11) / 2
A58: 0.6526229836 | E58: mass*g*cos | F58: =mass*g*COS(GoNiaEF) -> 15.86749302 | S58: BAROSn | T58: =-mass*g*SIN(ATAN2(BA9-BA8,BB9-BB8)) -> -12.51330501 | V58: =DEGREES(V57) -> 82.80939804 | Z58: -1.413716694 | AA58: 55 | AB58: -1.783810504 | AC58: 0.5782172325 | AD58: -2.771498844 | AE58: -0.5782172325 | AF58: 1.727875959 | AJ58: 3.830613165 | AK58: -1.175570505 | AL58: 4.398229715 | AO58: -0.09424777961 | AP58: -1.3825797 | AQ58: -0.9911239292 | AR58: -0.09424777961 | AS58: -1.3825797 | AT58: -0.9911239292 | BE58: x11old = X11: y11old = y11 | CC58: GoTo ypologizoy
A59: 0.6668104398 | E59: =tash -> 31.73498603 | F59: =F58+ABS(F57) -> 31.73498603 | S59: TASHSN= | T59: =mass*T57-T58 -> 37.53991504 | X59: 1 | Z59: -1.382300768 | AA59: 56 | AB59: -1.770803085 | AC59: 0.5936906573 | AD59: -2.753090336 | AE59: -0.5936906573 | AF59: 1.759291886 | AJ59: 3.901550446 | AK59: -1.414213562 | AL59: 4.71238898 | AO59: -0.1256637061 | AP59: -1.32012986 | AQ59: -0.9842294026 | AR59: -0.1256637061 | AS59: -1.32012986 | AT59: -0.9842294026 | BE59: i1 = 0 | CC59: End If
A60: 0.680997896 | S60: TASHSX | T60: TASHY | W60: =ATAN2(X59,X60) -> 1.047197551 | X60: =SQRT(3) -> 1.732050808 | Z60: -1.350884841 | AA60: 57 | AB60: -1.758280366 | AC60: 0.6090716207 | AD60: -2.734197128 | AE60: -0.6090716207 | AF60: 1.790707813 | AJ60: 3.972487727 | AK60: -1.618033989 | AL60: 5.026548246 | AO60: -0.1570796327 | AP60: -1.257927397 | AQ60: -0.9753766812 | AR60: -0.1570796327 | AS60: -1.257927397 | AT60: -0.9753766812 | BE60: If xc < -PI * AKTina Then | CC60: If x3 < XzhTo Then
A61: 0.6951853521 | S61: =IF(V57<0,T59*COS(ATAN2(BA8-BA9,BB8-BB9)),-T59*COS(ATAN2(BA8-BA9,BB8-BB9))) -> -28.90706853 | T61: =IF(V57<0,T59*SIN(ATAN2(BA8-BA9,BB8-BB9)),-T59*SIN(ATAN2(BA8-BA9,BB8-BB9))) -> 23.95050334 | W61: =DEGREES(W60) -> 60 | Z61: -1.319468915 | AA61: 58 | AB61: -1.746239203 | AC61: 0.6243449436 | AD61: -2.714822365 | AE61: -0.6243449436 | AF61: 1.822123739 | AJ61: 4.043425007 | AK61: -1.782013048 | AL61: 5.340707511 | AO61: -0.1884955592 | AP61: -1.196033698 | AQ61: -0.9645745015 | AR61: -0.1884955592 | AS61: -1.196033698 | AT61: -0.9645745015 | BE61: While X11 > x3 | CC61: OldTheta = thETA33
A62: 0.7093728083 | S62: =S61/15 -> -1.927137902 | T62: =T61/15 -> 1.596700223 | Z62: -1.288052988 | AA62: 59 | AB62: -1.734675978 | AC62: 0.639495553 | AD62: -2.694969664 | AE62: -0.639495553 | AF62: 1.853539666 | AJ62: 4.114362288 | AK62: -1.902113033 | AL62: 5.654866776 | AO62: -0.2199114858 | AP62: -1.134509844 | AQ62: -0.9518335239 | AR62: -0.2199114858 | AS62: -1.134509844 | AT62: -0.9518335239 | BE62: X11 = -PI * AKTina - AKTina * fi1 + AKTina * Sin(fi1) | CC62: x1 = x3
A63: 0.7235602645 | S63: TX | T63: TY | Z63: -1.256637061 | AA63: 60 | AB63: -1.723586599 | AC63: 0.6545084972 | AD63: -2.674643116 | AE63: -0.6545084972 | AF63: 1.884955592 | AJ63: 4.185299569 | AK63: -1.975376681 | AL63: 5.969026042 | AO63: -0.2513274123 | AP63: -1.073416552 | AQ63: -0.9371663223 | AR63: -0.2513274123 | AS63: -1.073416552 | AT63: -0.9371663223 | BE63: y11 = AKTina * (1 + Cos(fi1)) | CC63: dTheTa22 = dTheTa22 / 2
A64: 0.7377477206 | S64: =BA8 -> -0.03072525841 | T64: =T55 -> -0.2760020001 | Z64: -1.225221135 | AA64: 61 | AB64: -1.71296651 | AC64: 0.6693689601 | AD64: -2.653847279 | AE64: -0.6693689601 | AF64: 1.916371519 | AJ64: 4.25623685 | AK64: -2 | AL64: 6.283185307 | AO64: -0.2827433388 | AP64: -1.012814115 | AQ64: -0.9205873714 | AR64: -0.2827433388 | AS64: -1.012814115 | AT64: -0.9205873714 | BE64: If X11 - x11old = 0 Then | CC64: thETA33 = OldTheta + dTheTa22
A65: 0.7519351768 | S65: =S64+S62 -> -1.957863161 | T65: 1.320698223 | Z65: -1.193805208 | AA65: 62 | AB65: -1.702810688 | AC65: 0.6840622763 | AD65: -2.632587174 | AE65: -0.6840622763 | AF65: 1.947787445 | AJ65: 4.327174131 | AK65: -1.975376681 | AL65: 5.969026042 | AO65: -0.3141592654 | AP65: -0.952762338 | AQ65: -0.9021130326 | AR65: -0.3141592654 | AS65: -0.952762338 | AT65: -0.9021130326 | BE65: i1 = i1 + 1 | CC65: x3 = xOFTheta(thETA33, AKTina)
A66: 0.766122633 | S66: =-1/20*T62+18/20*S62+S64 -> -1.844984382 | T66: =1/20*S62+18/20*T62+T64 -> 1.064671305 | Z66: -1.162389282 | AA66: 63 | AB66: -1.693113655 | AC66: 0.6985739453 | AD66: -2.610868281 | AE66: -0.6985739453 | AF66: 1.979203372 | AJ66: 4.398111412 | AK66: -1.902113033 | AL66: 5.654866776 | AO66: -0.3455751919 | AP66: -0.8933204863 | AQ66: -0.8817615379 | AR66: -0.3455751919 | AS66: -0.8933204863 | AT66: -0.8817615379 | BE66: If i1 > 5 Then Exit Sub | CC66: METritis2 = METritis2 + 1
A67: 0.7803100891 | S67: =1/20*T62+18/20*S62+S64 -> -1.685314359 | T67: =-1/20*S62+18/20*T62+T64 -> 1.257385095 | Z67: -1.130973355 | AA67: 64 | AB67: =-xkathetos/2+Aktina*Z67-Aktina*SIN(Z67) -> -1.683869478 | AC67: 0.7128896458 | AD67: =Aktina*(AF67-SIN(AF67))-2*PI()*Aktina -> -2.588696531 | AE67: =-Aktina*(1-COS(AF67)) -> -0.7128896458 | AF67: 2.010619298 | AJ67: 4.469048692 | AK67: -1.782013048 | AL67: 5.340707511 | AO67: -0.3769911184 | AP67: -0.8345472214 | AQ67: -0.8595529718 | AR67: -0.3769911184 | AS67: -0.8345472214 | AT67: -0.8595529718 | BE67: End If | CC67: GoTo xana
A68: 0.7944975453 | S68: =S65 -> -1.957863161 | T68: 1.320698223 | U68: FORCE | Z68: =Z67+vimaex -> -1.099557429 | AA68: 65 | AB68: -1.675071779 | AC68: =Aktina*(1+COS(Z68)) -> 0.7269952499 | AD68: -2.566078303 | AE68: -0.7269952499 | AF68: 2.042035225 | AJ68: 4.539985973 | AK68: =Platoskinishs*COS(2*PI()*AJ68/Tperiod) -> -1.618033989 | AL68: =2*ACOS(AK68/(4*Aktina)) -> 5.026548246 | AO68: -0.408407045 | AP68: -0.7765005455 | AQ68: -0.8355092514 | AR68: -0.408407045 | AS68: -0.7765005455 | AT68: -0.8355092514 | BE68: kykloeidhs.PSet (X11, y11), RGB(0, 255, 0) | CC68: Else
A69: 0.8086850015 | S69: WEIGHT | T69: =-mass*g -> -19.6133 | U69: =S70+S61 -> -28.90706853 | V69: =T69+T61 -> 4.33720334 | Z69: -1.068141502 | AA69: =AA68+1 -> 66 | AB69: -1.666713738 | AC69: 0.7408768371 | AD69: -2.543020418 | AE69: -0.7408768371 | AF69: =AF68+2*PI()/200 -> 2.073451151 | AJ69: =AJ68+Tperiod/40 -> 4.610923254 | AK69: -1.414213562 | AL69: 4.71238898 | AO69: -0.4398229715 | AP69: =-PI()*Aktina-Length*SIN(AO69) -> -0.7192377437 | AQ69: =2*Aktina-Length*COS(AO69) -> -0.8096541049 | AR69: -0.4398229715 | AS69: =-PI()*Aktina-Length*SIN(AR69) -> -0.7192377437 | AT69: =2*Aktina-Length*COS(AR69) -> -0.8096541049 | BE69: kykloeidhs.Line (x11old, y11old)-(X11, y11), RGB(255, 0, 0) | CC69: X2 = x3
A70: 0.8228724576 | S70: 0 | T70: =T69/15 -> -1.307553333 | U70: =U69/15 -> -1.927137902 | V70: 0.2891468893 | Z70: -1.036725576 | AA70: 67 | AB70: -1.658788101 | AC70: 0.7545207079 | AD70: -2.519530128 | AE70: -0.7545207079 | AF70: 2.104867078 | AJ70: 4.681860535 | AK70: -1.175570505 | AL70: 4.398229715 | AO70: -0.471238898 | AP70: -0.6628153273 | AQ70: -0.7820130484 | AR70: =AR69-DGON -> -0.471238898 | AS70: -0.6628153273 | AT70: -0.7820130484 | BE70: fi1 = fi1 + PI / 500 | CC70: THEta11 = thETA33
A71: 0.8370599138 | S71: Bx | T71: By | U71: Fx | V71: Fy | Z71: -1.005309649 | AA71: 68 | AB71: -1.651287189 | AC71: 0.7679133975 | AD71: -2.495615114 | AE71: -0.7679133975 | AF71: 2.136283004 | AJ71: 4.752797816 | AK71: -0.9079809995 | AL71: 4.08407045 | AO71: =AO70-PI()/2/50 -> -0.5026548246 | AP71: -0.6072889786 | AQ71: -0.7526133601 | AR71: -0.5026548246 | AS71: -0.6072889786 | AT71: -0.7526133601 | BE71: x11old = X11: y11old = y11 | CC71: dTheTa22 = dTheTa22 / 2
A72: 0.85124737 | S72: =BA8 -> -0.03072525841 | T72: =BB8 -> -0.2760020001 | U72: =BA8 -> -0.03072525841 | V72: =BB8 -> -0.2760020001 | Z72: -0.9738937226 | AA72: 69 | AB72: -1.644202901 | AC72: 0.7810416889 | AD72: -2.471283475 | AE72: -0.7810416889 | AF72: 2.167698931 | AJ72: 4.823735097 | AK72: -0.6180339887 | AL72: 3.769911184 | AO72: -0.5340707511 | AP72: -0.5527134953 | AQ72: -0.721484054 | AR72: -0.5340707511 | AS72: -0.5527134953 | AT72: -0.721484054 | BE72: Wend | CC72: thETA33 = OldTheta + dTheTa22
A73: 0.8654348261 | S73: =S72+S70 -> -0.03072525841 | T73: -1.583555333 | U73: -1.957863161 | V73: 0.01314488922 | Z73: -0.9424777961 | AA73: 70 | AB73: -1.637526728 | AC73: 0.7938926261 | AD73: -2.446543722 | AE73: -0.7938926261 | AF73: 2.199114858 | AJ73: 4.894672377 | AK73: -0.3128689301 | AL73: 3.455751919 | AO73: -0.5654866776 | AP73: -0.4991427368 | AQ73: -0.688655851 | AR73: -0.5654866776 | AS73: -0.4991427368 | AT73: -0.688655851 | BE73: Else | CC73: x3 = xOFTheta(thETA33, AKTina)
A74: 0.8796222823 | S74: =-1/20*T70+18/20*S70+S72 -> 0.03465240826 | T74: =1/20*S70+18/20*T70+T72 -> -1.4528 | U74: =-1/20*V70+18/20*U70+U72 -> -1.779606715 | V74: =1/20*U70+18/20*V70+V72 -> -0.1121266948 | Z74: -0.9110618695 | AA74: 71 | AB74: -1.631249755 | AC74: 0.8064535268 | AD74: -2.421404768 | AE74: -0.8064535268 | AF74: 2.230530784 | AJ74: 4.965609658 | AK74: 4.177496023e-14 | AL74: 3.141592654 | AO74: -0.5969026042 | AP74: -0.4466295711 | AQ74: -0.6541611485 | AR74: -0.5969026042 | AS74: -0.4466295711 | AT74: -0.6541611485 | BE74: While X11 < x3 | CC74: METritis2 = METritis2 + 1
A75: 0.8938097385 | S75: =1/20*T70+18/20*S70+S72 -> -0.09610292508 | T75: =-1/20*S70+18/20*T70+T72 -> -1.4528 | U75: =1/20*V70+18/20*U70+U72 -> -1.750692026 | V75: =-1/20*U70+18/20*V70+V72 -> 0.08058709539 | Z75: -0.879645943 | AA75: 72 | AB75: -1.625362677 | AC75: 0.8187119949 | AD75: -2.39587592 | AE75: -0.8187119949 | AF75: 2.261946711 | AJ75: 5.036546939 | AK75: 0.3128689301 | AL75: 2.827433388 | AO75: -0.6283185307 | AP75: -0.3952258222 | AQ75: -0.6180339887 | AR75: -0.6283185307 | AS75: -0.3952258222 | AT75: -0.6180339887 | BE75: X11 = -PI * AKTina + AKTina * fi1 - AKTina * Sin(fi1) | CC75: GoTo xana
A76: 0.9079971946 | S76: =S73 -> -0.03072525841 | T76: -1.583555333 | U76: -1.957863161 | V76: 0.01314488922 | Z76: -0.8482300165 | AA76: 73 | AB76: -1.6198558 | AC76: 0.8306559327 | AD76: -2.36996687 | AE76: -0.8306559327 | AF76: 2.293362637 | AJ76: 5.10748422 | AK76: 0.6180339887 | AL76: 2.513274123 | AO76: -0.6597344573 | AP76: -0.3449822195 | AQ76: -0.5803100248 | AR76: -0.6597344573 | AS76: -0.3449822195 | AT76: -0.5803100248 | BE76: y11 = AKTina * (1 + Cos(fi1)) | CC76: End If
A77: =A76+dt -> 0.9221846508 | Z77: -0.8168140899 | AA77: 74 | AB77: -1.614719058 | AC77: 0.842273553 | AD77: -2.343687685 | AE77: -0.842273553 | AF77: 2.324778564 | AJ77: 5.178421501 | AK77: 0.9079809995 | AL77: 2.199114858 | AO77: -0.6911503838 | AP77: -0.2959483473 | AQ77: -0.5410264856 | AR77: -0.6911503838 | AS77: -0.2959483473 | AT77: -0.5410264856 | BE77: If X11 - x11old = 0 Then
A78: 0.936372107 | Z78: -0.7853981634 | AA78: 75 | AB78: -1.609942018 | AC78: 0.8535533906 | AD78: -2.317048799 | AE78: -0.8535533906 | AF78: 2.35619449 | AJ78: 5.249358782 | AK78: 1.175570505 | AL78: 1.884955592 | AO78: -0.7225663103 | AP78: -0.2481725961 | AQ78: -0.5002221393 | AR78: -0.7225663103 | AS78: -0.2481725961 | AT78: -0.5002221393 | BE78: i1 = i1 + 1 | CC78: End If
A79: 0.9505595631 | Z79: -0.7539822369 | AA79: 76 | AB79: -1.605513892 | AC79: 0.8644843137 | AD79: -2.290060998 | AE79: -0.8644843137 | AF79: 2.387610417 | AJ79: 5.320296062 | AK79: 1.414213562 | AL79: 1.570796327 | AO79: -0.7539822369 | AP79: -0.2017021149 | AQ79: -0.4579372548 | AR79: -0.7539822369 | AS79: -0.2017021149 | AT79: -0.4579372548 | BE79: If i1 > 5 Then Exit Sub | CC79: OldTheta = THEta11
A80: 0.9647470193 | Z80: -0.7225663103 | AA80: 77 | AB80: -1.601423549 | AC80: 0.8750555348 | AD80: -2.262735415 | AE80: -0.8750555348 | AF80: 2.419026343 | AJ80: 5.391233343 | AK80: 1.618033989 | AL80: 1.256637061 | AO80: -0.7853981634 | AP80: -0.1565827644 | AQ80: -0.4142135624 | AR80: -0.7853981634 | AS80: -0.1565827644 | AT80: -0.4142135624 | BE80: End If | CC80: Next THEta11
A81: 0.9789344755 | Z81: -0.6911503838 | AA81: 78 | AB81: -1.597659524 | AC81: 0.8852566214 | AD81: -2.235083514 | AE81: -0.8852566214 | AF81: 2.45044227 | AJ81: 5.462170624 | AK81: 1.782013048 | AL81: 0.9424777961 | AO81: -0.8168140899 | AP81: -0.112859072 | AQ81: -0.3690942119 | AR81: -0.8168140899 | AS81: -0.112859072 | AT81: -0.3690942119 | BE81: 'kykloeidhs.PSet (X11, y11), RGB(0, 255, 0) | CC81: ypologizoy:
A82: 0.9931219316 | Z82: -0.6597344573 | AA82: 79 | AB82: -1.594210029 | AC82: 0.8950775062 | AD82: -2.207117082 | AE82: -0.8950775062 | AF82: 2.481858196 | AJ82: 5.533107905 | AK82: 1.902113033 | AL82: 0.6283185307 | AO82: -0.8482300165 | AP82: -0.07057418753 | AQ82: -0.3226237306 | AR82: -0.8482300165 | AS82: -0.07057418753 | AT82: -0.3226237306 | BE82: kykloeidhs.Line (x11old, y11old)-(X11, y11), RGB(255, 0, 0) | CC82: psi = -AKTina + AKTina * Cos(TheTaTel)
A83: 1.007309388 | Z83: -0.6283185307 | AA83: 80 | AB83: -1.591062966 | AC83: 0.9045084972 | AD83: -2.178848218 | AE83: -0.9045084972 | AF83: 2.513274123 | AJ83: 5.604045186 | AK83: 1.975376681 | AL83: 0.3141592654 | AO83: -0.879645943 | AP83: -0.02976984124 | AQ83: -0.2748479795 | AR83: -0.879645943 | AS83: -0.02976984124 | AT83: -0.2748479795 | BE83: fi1 = fi1 + PI / 500 | CC83: APOXSEF.X11111 = psi
A84: 1.021496844 | Z84: -0.5969026042 | AA84: 81 | AB84: -1.58820594 | AC84: 0.9135402871 | AD84: -2.150289318 | AE84: -0.9135402871 | AF84: 2.544690049 | AJ84: 5.674982467 | AK84: 2 | AL84: 0 | AO84: -0.9110618695 | AP84: 0.009513697956 | AQ84: -0.2258141073 | AR84: -0.9110618695 | AS84: 0.009513697956 | AT84: -0.2258141073 | BE84: x11old = X11: y11old = y11 | CC84: APOXSEF.GON11111 = TheTaTel
A85: 1.0356843 | Z85: -0.5654866776 | AA85: 82 | AB85: -1.585626268 | AC85: 0.9221639628 | AD85: -2.121453063 | AE85: -0.9221639628 | AF85: 2.576105976 | AJ85: 5.745919747 | AK85: 1.975376681 | AL85: 0.3141592654 | AO85: -0.9424777961 | AP85: 0.04723766196 | AQ85: -0.1755705046 | AR85: -0.9424777961 | AS85: 0.04723766196 | AT85: -0.1755705046 | BE85: Wend | CC85: End Function
A86: 1.049871756 | Z86: -0.5340707511 | AA86: 83 | AB86: -1.583310994 | AC86: 0.9303710135 | AD86: -2.09235241 | AE86: -0.9303710135 | AF86: 2.607521902 | AJ86: 5.816857028 | AK86: 1.902113033 | AL86: 0.6283185307 | AO86: -0.9738937226 | AP86: 0.08336482175 | AQ86: -0.1241667557 | AR86: -0.9738937226 | AS86: 0.08336482175 | AT86: -0.1241667557 | BE86: End If
A87: 1.064059212 | Z87: -0.5026548246 | AA87: 84 | AB87: -1.581246902 | AC87: 0.93815334 | AD87: -2.063000576 | AE87: -0.93815334 | AF87: 2.638937829 | AJ87: 5.887794309 | AK87: 1.782013048 | AL87: 0.9424777961 | AO87: -1.005309649 | AP87: 0.1178595242 | AQ87: -0.07165358996 | AR87: -1.005309649 | AS87: 0.1178595242 | AT87: -0.07165358996 | BE87: End Sub
A88: 1.078246669 | Z88: -0.471238898 | AA88: 85 | AB88: -1.579420526 | AC88: 0.9455032621 | AD88: -2.033411026 | AE88: -0.9455032621 | AF88: 2.670353756 | AJ88: 5.95873159 | AK88: 1.618033989 | AL88: 1.256637061 | AO88: -1.036725576 | AP88: 0.1506877272 | AQ88: -0.0180828315 | AR88: -1.036725576 | AS88: 0.1506877272 | AT88: -0.0180828315
A89: 1.092434125 | Z89: -0.4398229715 | AA89: 86 | AB89: -1.577818167 | AC89: 0.9524135262 | AD89: -2.003597458 | AE89: -0.9524135262 | AF89: 2.701769682 | AJ89: 6.029668871 | AK89: 1.414213562 | AL89: 1.570796327 | AO89: -1.068141502 | AP89: 0.1818170333 | AQ89: 0.0364926518 | AR89: -1.068141502 | AS89: 0.1818170333 | AT89: 0.0364926518
A90: 1.106621581 | Z90: -0.408407045 | AA90: 87 | AB90: -1.576425904 | AC90: 0.9588773128 | AD90: -1.973573795 | AE90: -0.9588773128 | AF90: 2.733185609 | AJ90: 6.100606151 | AK90: 1.175570505 | AL90: 1.884955592 | AO90: -1.099557429 | AP90: 0.2112167216 | AQ90: 0.09201900052 | AR90: -1.099557429 | AS90: 0.2112167216 | AT90: 0.09201900052
A91: 1.120809037 | Z91: -0.3769911184 | AA91: 88 | AB91: -1.57522961 | AC91: 0.9648882429 | AD91: -1.943354162 | AE91: -0.9648882429 | AF91: 2.764601535 | AJ91: 6.171543432 | AK91: 0.9079809995 | AL91: 2.199114858 | AO91: -1.130973355 | AP91: 0.2388577781 | AQ91: 0.1484414169 | AR91: -1.130973355 | AS91: 0.2388577781 | AT91: 0.1484414169
A92: 1.134996493 | Z92: -0.3455751919 | AA92: 89 | AB92: -1.574214963 | AC92: 0.9704403845 | AD92: -1.912952883 | AE92: -0.9704403845 | AF92: 2.796017462 | AJ92: 6.242480713 | AK92: 0.6180339887 | AL92: 2.513274123 | AO92: -1.162389282 | AP92: 0.2647129246 | AQ92: 0.2057042187 | AR92: -1.162389282 | AS92: 0.2647129246 | AT92: 0.2057042187
A93: 1.149183949 | Z93: -0.3141592654 | AA93: 90 | AB93: -1.573367462 | AC93: 0.9755282581 | AD93: -1.882384457 | AE93: -0.9755282581 | AF93: 2.827433388 | AJ93: 6.313417994 | AK93: 0.3128689301 | AL93: 2.827433388 | AO93: -1.193805208 | AP93: 0.288756645 | AQ93: 0.2637508946 | AR93: -1.193805208 | AS93: 0.288756645 | AT93: 0.2637508946
A94: 1.163371406 | Z94: -0.2827433388 | AA94: 91 | AB94: -1.572672443 | AC94: 0.9801468428 | AD94: -1.851663549 | AE94: -0.9801468428 | AF94: 2.858849315 | AJ94: 6.384355275 | AK94: -5.929349893e-14 | AL94: 3.141592654 | AO94: -1.225221135 | AP94: 0.3109652111 | AQ94: 0.3225241595 | AR94: -1.225221135 | AS94: 0.3109652111 | AT94: 0.3225241595
A95: 1.177558862 | Z95: -0.2513274123 | AA95: 92 | AB95: -1.572115089 | AC95: 0.9842915806 | AD95: -1.820804977 | AE95: -0.9842915806 | AF95: 2.890265241 | AJ95: 6.455292556 | AK95: -0.3128689301 | AL95: 3.455751919 | AO95: -1.256637061 | AP95: 0.3313167058 | AQ95: 0.3819660113 | AR95: -1.256637061 | AS95: 0.3313167058 | AT95: 0.3819660113
A96: 1.191746318 | Z96: -0.2199114858 | AA96: 93 | AB96: -1.571680449 | AC96: 0.987958381 | AD96: -1.78982369 | AE96: -0.987958381 | AF96: 2.921681168 | AJ96: 6.526229836 | AK96: -0.6180339887 | AL96: 3.769911184 | AO96: -1.288052988 | AP96: 0.3497910446 | AQ96: 0.4420177879 | AR96: -1.288052988 | AS96: 0.3497910446 | AT96: 0.4420177879
A97: 1.205933774 | Z97: -0.1884955592 | AA97: 94 | AB97: -1.571353449 | AC97: 0.9911436254 | AD97: -1.758734764 | AE97: -0.9911436254 | AF97: 2.953097094 | AJ97: 6.597167117 | AK97: -0.9079809995 | AL97: 4.08407045 | AO97: -1.319468915 | AP97: 0.3663699955 | AQ97: 0.5026202257 | AR97: -1.319468915 | AS97: 0.3663699955 | AT97: 0.5026202257
A98: 1.22012123 | Z98: -0.1570796327 | AA98: 95 | AB98: -1.571118911 | AC98: 0.9938441703 | AD98: -1.727553376 | AE98: -0.9938441703 | AF98: 2.984513021 | AJ98: 6.668104398 | AK98: -1.175570505 | AL98: 4.398229715 | AO98: -1.350884841 | AP98: 0.3810371971 | AQ98: 0.5637135172 | AR98: -1.350884841 | AS98: 0.3810371971 | AT98: 0.5637135172
A99: 1.234308686 | Z99: -0.1256637061 | AA99: 96 | AB99: -1.570961563 | AC99: 0.9960573507 | AD99: -1.696294797 | AE99: -0.9960573507 | AF99: 3.015928947 | AJ99: 6.739041679 | AK99: -1.414213562 | AL99: 4.71238898 | AO99: -1.382300768 | AP99: 0.3937781747 | AQ99: 0.6252373708 | AR99: -1.382300768 | AS99: 0.3937781747 | AT99: 0.6252373708
A100: 1.248496143 | Z100: =Z99+vimaex -> -0.09424777961 | AA100: 97 | AB100: -1.57086606 | AC100: 0.9977809823 | AD100: -1.664974373 | AE100: -0.9977809823 | AF100: 3.047344874 | AJ100: 6.80997896 | AK100: =Platoskinishs*COS(2*PI()*AJ100/Tperiod) -> -1.618033989 | AL100: =2*ACOS(AK100/(4*Aktina)) -> 5.026548246 | AO100: -1.413716694 | AP100: 0.4045803544 | AQ100: 0.6871310699 | AR100: -1.413716694 | AS100: 0.4045803544 | AT100: 0.6871310699
A101: 1.262683599 | Z101: -0.06283185307 | AA101: 98 | AB101: -1.570816994 | AC101: 0.9990133642 | AD101: -1.633607513 | AE101: -0.9990133642 | AF101: 3.078760801 | AJ101: =AJ100+Tperiod/40 -> 6.880916241 | AK101: -1.782013048 | AL101: 5.340707511 | AO101: -1.445132621 | AP101: =-PI()*Aktina-Length*SIN(AO101) -> 0.4134330758 | AQ101: 0.7493335329 | AR101: -1.445132621 | AS101: =-PI()*Aktina-Length*SIN(AR101) -> 0.4134330758 | AT101: 0.7493335329
A102: 1.276871055 | Z102: -0.03141592654 | AA102: 99 | AB102: -1.570798911 | AC102: 0.9997532802 | AD102: -1.60220967 | AE102: -0.9997532802 | AF102: 3.110176727 | AJ102: 6.951853521 | AK102: -1.902113033 | AL102: 5.654866776 | AO102: -1.476548547 | AP102: 0.4203276024 | AQ102: 0.8117833734 | AR102: -1.476548547 | AS102: 0.4203276024 | AT102: 0.8117833734
A103: 1.291058511 | Z103: -4.385380947e-15 | AA103: 100 | AB103: -1.570796327 | AC103: 1 | AD103: -1.570796327 | AE103: -1 | AF103: 3.141592654 | AJ103: 7.022790802 | AK103: -1.975376681 | AL103: 5.969026042 | AO103: -1.507964474 | AP103: 0.4252571301 | AQ103: 0.8744189609 | AR103: -1.507964474 | AS103: 0.4252571301 | AT103: 0.8744189609
A104: 1.305245967 | Z104: 0.03141592654 | AA104: 101 | AB104: -1.570793743 | AC104: 0.9997532802 | AD104: -1.539382984 | AE104: -0.9997532802 | AF104: 3.17300858 | AJ104: 7.093728083 | AK104: -2 | AL104: 6.283185307 | AO104: -1.5393804 | AP104: 0.4282167939 | AQ104: 0.9371784818 | AR104: -1.5393804 | AS104: 0.4282167939 | AT104: 0.9371784818
A105: 1.319433423 | Z105: 0.06283185307 | AA105: 102 | AB105: -1.57077566 | AC105: 0.9990133642 | AD105: -1.50798514 | AE105: -0.9990133642 | AF105: 3.204424507 | AJ105: 7.164665364 | AK105: -1.975376681 | AL105: 5.969026042 | AO105: -1.570796327 | AP105: 0.4292036732 | AQ105: 1 | AR105: -1.570796327 | AS105: 0.4292036732 | AT105: 1
A106: 1.33362088 | Z106: 0.09424777961 | AA106: 103 | AB106: -1.570726594 | AC106: 0.9977809823 | AD106: -1.47661828 | AE106: -0.9977809823 | AF106: 3.235840433 | AJ106: 7.235602645 | AK106: -1.902113033 | AL106: 5.654866776
A107: 1.347808336 | Z107: 0.1256637061 | AA107: 104 | AB107: -1.570631091 | AC107: 0.9960573507 | AD107: -1.445297857 | AE107: -0.9960573507 | AF107: 3.26725636 | AJ107: 7.306539926 | AK107: -1.782013048 | AL107: 5.340707511
A108: 1.361995792 | Z108: 0.1570796327 | AA108: 105 | AB108: -1.570473743 | AC108: 0.9938441703 | AD108: -1.414039278 | AE108: -0.9938441703 | AF108: 3.298672286 | AJ108: 7.377477206 | AK108: -1.618033989 | AL108: 5.026548246
A109: 1.376183248 | Z109: 0.1884955592 | AA109: 106 | AB109: -1.570239204 | AC109: 0.9911436254 | AD109: -1.38285789 | AE109: -0.9911436254 | AF109: 3.330088213 | AJ109: 7.448414487 | AK109: -1.414213562 | AL109: 4.71238898
A110: 1.390370704 | Z110: 0.2199114858 | AA110: 107 | AB110: -1.569912205 | AC110: 0.987958381 | AD110: -1.351768963 | AE110: -0.987958381 | AF110: 3.361504139 | AJ110: 7.519351768 | AK110: -1.175570505 | AL110: 4.398229715
A111: 1.40455816 | Z111: 0.2513274123 | AA111: 108 | AB111: -1.569477564 | AC111: 0.9842915806 | AD111: -1.320787677 | AE111: -0.9842915806 | AF111: 3.392920066 | AJ111: 7.590289049 | AK111: -0.9079809995 | AL111: 4.08407045
A112: 1.418745617 | Z112: 0.2827433388 | AA112: 109 | AB112: -1.56892021 | AC112: 0.9801468428 | AD112: -1.289929104 | AE112: -0.9801468428 | AF112: 3.424335992 | AJ112: 7.66122633 | AK112: -0.6180339887 | AL112: 3.769911184
A113: 1.432933073 | Z113: 0.3141592654 | AA113: 110 | AB113: -1.568225191 | AC113: 0.9755282581 | AD113: -1.259208197 | AE113: -0.9755282581 | AF113: 3.455751919 | AJ113: 7.732163611 | AK113: -0.3128689301 | AL113: 3.455751919
A114: 1.447120529 | Z114: 0.3455751919 | AA114: 111 | AB114: -1.567377691 | AC114: 0.9704403845 | AD114: -1.228639771 | AE114: -0.9704403845 | AF114: 3.487167845 | AJ114: 7.803100891 | AK114: 8.036475131e-14 | AL114: 3.141592654
A115: 1.461307985 | Z115: 0.3769911184 | AA115: 112 | AB115: -1.566363044 | AC115: 0.9648882429 | AD115: -1.198238491 | AE115: -0.9648882429 | AF115: 3.518583772 | AJ115: 7.874038172 | AK115: 0.3128689301 | AL115: 2.827433388
A116: 1.475495441 | Z116: 0.408407045 | AA116: 113 | AB116: -1.56516675 | AC116: 0.9588773128 | AD116: -1.168018859 | AE116: -0.9588773128 | AF116: 3.549999699 | AJ116: 7.944975453 | AK116: 0.6180339887 | AL116: 2.513274123
A117: 1.489682897 | Z117: 0.4398229715 | AA117: 114 | AB117: -1.563774487 | AC117: 0.9524135262 | AD117: -1.137995195 | AE117: -0.9524135262 | AF117: 3.581415625 | AJ117: 8.015912734 | AK117: 0.9079809995 | AL117: 2.199114858
A118: 1.503870354 | Z118: 0.471238898 | AA118: 115 | AB118: -1.562172128 | AC118: 0.9455032621 | AD118: -1.108181628 | AE118: -0.9455032621 | AF118: 3.612831552 | AJ118: 8.086850015 | AK118: 1.175570505 | AL118: 1.884955592
A119: 1.51805781 | Z119: 0.5026548246 | AA119: 116 | AB119: -1.560345752 | AC119: 0.93815334 | AD119: -1.078592077 | AE119: -0.93815334 | AF119: 3.644247478 | AJ119: 8.157787296 | AK119: 1.414213562 | AL119: 1.570796327
A120: 1.532245266 | Z120: 0.5340707511 | AA120: 117 | AB120: -1.558281659 | AC120: 0.9303710135 | AD120: -1.049240243 | AE120: -0.9303710135 | AF120: 3.675663405 | AJ120: 8.228724576 | AK120: 1.618033989 | AL120: 1.256637061
A121: 1.546432722 | Z121: 0.5654866776 | AA121: 118 | AB121: -1.555966385 | AC121: 0.9221639628 | AD121: -1.02013959 | AE121: -0.9221639628 | AF121: 3.707079331 | AJ121: 8.299661857 | AK121: 1.782013048 | AL121: 0.9424777961
A122: 1.560620178 | Z122: 0.5969026042 | AA122: 119 | AB122: -1.553386714 | AC122: 0.9135402871 | AD122: -0.9913033358 | AE122: -0.9135402871 | AF122: 3.738495258 | AJ122: 8.370599138 | AK122: 1.902113033 | AL122: 0.6283185307
A123: 1.574807634 | Z123: 0.6283185307 | AA123: 120 | AB123: -1.550529688 | AC123: 0.9045084972 | AD123: -0.9627444353 | AE123: -0.9045084972 | AF123: 3.769911184 | AJ123: 8.441536419 | AK123: 1.975376681 | AL123: 0.3141592654
A124: 1.588995091 | Z124: 0.6597344573 | AA124: 121 | AB124: -1.547382625 | AC124: 0.8950775062 | AD124: -0.9344755713 | AE124: -0.8950775062 | AF124: 3.801327111 | AJ124: 8.5124737 | AK124: 2 | AL124: 0
A125: 1.603182547 | Z125: 0.6911503838 | AA125: 122 | AB125: -1.54393313 | AC125: 0.8852566214 | AD125: -0.90650914 | AE125: -0.8852566214 | AF125: 3.832743037 | AJ125: 8.583410981 | AK125: 1.975376681 | AL125: 0.3141592654
A126: 1.617370003 | Z126: 0.7225663103 | AA126: 123 | AB126: -1.540169104 | AC126: 0.8750555348 | AD126: -0.878857239 | AE126: -0.8750555348 | AF126: 3.864158964 | AJ126: 8.654348261 | AK126: 1.902113033 | AL126: 0.6283185307
A127: 1.631557459 | Z127: 0.7539822369 | AA127: 124 | AB127: -1.536078761 | AC127: 0.8644843137 | AD127: -0.8515316554 | AE127: -0.8644843137 | AF127: 3.89557489 | AJ127: 8.725285542 | AK127: 1.782013048 | AL127: 0.9424777961
A128: 1.645744915 | Z128: 0.7853981634 | AA128: 125 | AB128: -1.531650636 | AC128: 0.8535533906 | AD128: -0.8245438545 | AE128: -0.8535533906 | AF128: 3.926990817 | AJ128: 8.796222823 | AK128: 1.618033989 | AL128: 1.256637061
A129: 1.659932371 | Z129: 0.8168140899 | AA129: 126 | AB129: -1.526873596 | AC129: 0.842273553 | AD129: -0.7979049681 | AE129: -0.842273553 | AF129: 3.958406744 | AJ129: 8.867160104 | AK129: 1.414213562 | AL129: 1.570796327
A130: 1.674119828 | Z130: 0.8482300165 | AA130: 127 | AB130: -1.521736853 | AC130: 0.8306559327 | AD130: -0.7716257837 | AE130: -0.8306559327 | AF130: 3.98982267 | AJ130: 8.938097385 | AK130: 1.175570505 | AL130: 1.884955592
A131: 1.688307284 | Z131: 0.879645943 | AA131: 128 | AB131: =-xkathetos/2+Aktina*Z131-Aktina*SIN(Z131) -> -1.516229977 | AC131: 0.8187119949 | AD131: =Aktina*(AF131-SIN(AF131))-2*PI()*Aktina -> -0.7457167339 | AE131: =-Aktina*(1-COS(AF131)) -> -0.8187119949 | AF131: 4.021238597 | AJ131: 9.009034666 | AK131: 0.9079809995 | AL131: 2.199114858
A132: 1.70249474 | Z132: =Z131+vimaex -> 0.9110618695 | AA132: 129 | AB132: -1.510342898 | AC132: =Aktina*(1+COS(Z132)) -> 0.8064535268 | AD132: -0.7201878858 | AE132: -0.8064535268 | AF132: 4.052654523 | AJ132: 9.079971946 | AK132: =Platoskinishs*COS(2*PI()*AJ132/Tperiod) -> 0.6180339887 | AL132: =2*ACOS(AK132/(4*Aktina)) -> 2.513274123
A133: 1.716682196 | Z133: 0.9424777961 | AA133: =AA132+1 -> 130 | AB133: -1.504065926 | AC133: 0.7938926261 | AD133: -0.6950489316 | AE133: -0.7938926261 | AF133: =AF132+2*PI()/200 -> 4.08407045 | AJ133: =AJ132+Tperiod/40 -> 9.150909227 | AK133: 0.3128689301 | AL133: 2.827433388
A134: 1.730869652 | Z134: 0.9738937226 | AA134: 131 | AB134: -1.497389753 | AC134: 0.7810416889 | AD134: -0.6703091784 | AE134: -0.7810416889 | AF134: 4.115486376 | AJ134: 9.221846508 | AK134: -3.038173012e-14 | AL134: 3.141592654
A135: 1.745057108 | Z135: 1.005309649 | AA135: 132 | AB135: -1.490305465 | AC135: 0.7679133975 | AD135: -0.6459775395 | AE135: -0.7679133975 | AF135: 4.146902303 | AJ135: 9.292783789 | AK135: -0.3128689301 | AL135: 3.455751919
A136: 1.759244565 | Z136: 1.036725576 | AA136: 133 | AB136: -1.482804552 | AC136: 0.7545207079 | AD136: -0.6220625255 | AE136: -0.7545207079 | AF136: 4.178318229 | AJ136: 9.36372107 | AK136: -0.6180339887 | AL136: 3.769911184
A137: 1.773432021 | Z137: 1.068141502 | AA137: 134 | AB137: -1.474878916 | AC137: 0.7408768371 | AD137: -0.5985722357 | AE137: -0.7408768371 | AF137: 4.209734156 | AJ137: 9.434658351 | AK137: -0.9079809995 | AL137: 4.08407045
A138: 1.787619477 | Z138: 1.099557429 | AA138: 135 | AB138: -1.466520875 | AC138: 0.7269952499 | AD138: -0.5755143503 | AE138: -0.7269952499 | AF138: 4.241150082 | AJ138: 9.505595631 | AK138: -1.175570505 | AL138: 4.398229715
A139: 1.801806933 | Z139: 1.130973355 | AA139: 136 | AB139: -1.457723175 | AC139: 0.7128896458 | AD139: -0.5528961229 | AE139: -0.7128896458 | AF139: 4.272566009 | AJ139: 9.576532912 | AK139: -1.414213562 | AL139: 4.71238898
A140: 1.815994389 | Z140: 1.162389282 | AA140: 137 | AB140: -1.448478999 | AC140: 0.6985739453 | AD140: -0.530724373 | AE140: -0.6985739453 | AF140: 4.303981935 | AJ140: 9.647470193 | AK140: -1.618033989 | AL140: 5.026548246
A141: =A140+dt -> 1.830181845 | Z141: 1.193805208 | AA141: 138 | AB141: -1.438781966 | AC141: 0.6840622763 | AD141: -0.5090054797 | AE141: -0.6840622763 | AF141: 4.335397862 | AJ141: 9.718407474 | AK141: -1.782013048 | AL141: 5.340707511
A142: 1.844369302 | Z142: 1.225221135 | AA142: 139 | AB142: -1.428626144 | AC142: 0.6693689601 | AD142: -0.4877453749 | AE142: -0.6693689601 | AF142: 4.366813788 | AJ142: 9.789344755 | AK142: -1.902113033 | AL142: 5.654866776
A143: 1.858556758 | Z143: 1.256637061 | AA143: 140 | AB143: -1.418006054 | AC143: 0.6545084972 | AD143: -0.4669495379 | AE143: -0.6545084972 | AF143: 4.398229715 | AJ143: 9.860282036 | AK143: -1.975376681 | AL143: 5.969026042
A144: 1.872744214 | Z144: 1.288052988 | AA144: 141 | AB144: -1.406916676 | AC144: 0.639495553 | AD144: -0.44662299 | AE144: -0.639495553 | AF144: 4.429645642 | AJ144: 9.931219316 | AK144: -2 | AL144: 6.283185307
A145: 1.88693167 | Z145: 1.319468915 | AA145: 142 | AB145: -1.39535345 | AC145: 0.6243449436 | AD145: -0.426770289 | AE145: -0.6243449436 | AF145: 4.461061568 | AJ145: 10.0021566 | AK145: -1.975376681 | AL145: 5.969026042
A146: 1.901119126 | Z146: 1.350884841 | AA146: 143 | AB146: -1.383312287 | AC146: 0.6090716207 | AD146: -0.4073955253 | AE146: -0.6090716207 | AF146: 4.492477495 | AJ146: 10.07309388 | AK146: -1.902113033 | AL146: 5.654866776
A147: 1.915306582 | Z147: 1.382300768 | AA147: 144 | AB147: -1.370789568 | AC147: 0.5936906573 | AD147: -0.3885023176 | AE147: -0.5936906573 | AF147: 4.523893421 | AJ147: 10.14403116 | AK147: -1.782013048 | AL147: 5.340707511
A148: 1.929494039 | Z148: 1.413716694 | AA148: 145 | AB148: -1.35778215 | AC148: 0.5782172325 | AD148: -0.3700938094 | AE148: -0.5782172325 | AF148: 4.555309348 | AJ148: 10.21496844 | AK148: -1.618033989 | AL148: 5.026548246
A149: 1.943681495 | Z149: 1.445132621 | AA149: 146 | AB149: -1.344287367 | AC149: 0.5626666168 | AD149: -0.3521726658 | AE149: -0.5626666168 | AF149: 4.586725274 | AJ149: 10.28590572 | AK149: -1.414213562 | AL149: 4.71238898
A150: 1.957868951 | Z150: 1.476548547 | AA150: 147 | AB150: -1.330303036 | AC150: 0.5470541567 | AD150: -0.3347410709 | AE150: -0.5470541567 | AF150: 4.618141201 | AJ150: 10.356843 | AK150: -1.175570505 | AL150: 4.398229715
A151: 1.972056407 | Z151: 1.507964474 | AA151: 148 | AB151: -1.315827454 | AC151: 0.5313952598 | AD151: -0.3178007257 | AE151: -0.5313952598 | AF151: 4.649557127 | AJ151: 10.42778028 | AK151: -0.9079809995 | AL151: 4.08407045
A152: 1.986243863 | Z152: 1.5393804 | AA152: 149 | AB152: -1.300859407 | AC152: 0.5157053795 | AD152: -0.3013528465 | AE152: -0.5157053795 | AF152: 4.680973054 | AJ152: 10.49871756 | AK152: -0.6180339887 | AL152: 3.769911184
A153: 2.000431319 | Z153: 1.570796327 | AA153: 150 | AB153: -1.285398163 | AC153: 0.5 | AD153: -0.2853981634 | AE153: -0.5 | AF153: 4.71238898 | AJ153: 10.56965484 | AK153: -0.3128689301 | AL153: 3.455751919
A154: 2.014618776 | Z154: 1.602212253 | AA154: 151 | AB154: -1.26944348 | AC154: 0.4842946205 | AD154: -0.2699369199 | AE154: -0.4842946205 | AF154: 4.743804907 | AJ154: 10.64059212 | AK154: -3.381214579e-14 | AL154: 3.141592654
A155: 2.028806232 | Z155: 1.63362818 | AA155: 152 | AB155: -1.252995601 | AC155: 0.4686047402 | AD155: -0.2549688726 | AE155: -0.4686047402 | AF155: 4.775220833 | AJ155: 10.71152941 | AK155: 0.3128689301 | AL155: 2.827433388
A156: 2.042993688 | Z156: 1.665044106 | AA156: 153 | AB156: -1.236055256 | AC156: 0.4529458433 | AD156: -0.2404932913 | AE156: -0.4529458433 | AF156: 4.80663676 | AJ156: 10.78246669 | AK156: 0.6180339887 | AL156: 2.513274123
A157: 2.057181144 | Z157: 1.696460033 | AA157: 154 | AB157: -1.218623661 | AC157: 0.4373333832 | AD157: -0.2265089597 | AE157: -0.4373333832 | AF157: 4.838052687 | AJ157: 10.85340397 | AK157: 0.9079809995 | AL157: 2.199114858
A158: 2.0713686 | Z158: 1.727875959 | AA158: 155 | AB158: -1.200702517 | AC158: 0.4217827675 | AD158: -0.2130141768 | AE158: -0.4217827675 | AF158: 4.869468613 | AJ158: 10.92434125 | AK158: 1.175570505 | AL158: 1.884955592
A159: 2.085556056 | Z159: 1.759291886 | AA159: 156 | AB159: -1.182294009 | AC159: 0.4063093427 | AD159: -0.2000067584 | AE159: -0.4063093427 | AF159: 4.90088454 | AJ159: 10.99527853 | AK159: 1.414213562 | AL159: 1.570796327
A160: 2.099743513 | Z160: 1.790707813 | AA160: 157 | AB160: -1.163400801 | AC160: 0.3909283793 | AD160: -0.1874840396 | AE160: -0.3909283793 | AF160: 4.932300466 | AJ160: 11.06621581 | AK160: 1.618033989 | AL160: 1.256637061
A161: 2.113930969 | Z161: 1.822123739 | AA161: 158 | AB161: -1.144026038 | AC161: 0.3756550564 | AD161: -0.1754428767 | AE161: -0.3756550564 | AF161: 4.963716393 | AJ161: 11.13715309 | AK161: 1.782013048 | AL161: 0.9424777961
A162: 2.128118425 | Z162: 1.853539666 | AA162: 159 | AB162: -1.124173337 | AC162: 0.360504447 | AD162: -0.1638796511 | AE162: -0.360504447 | AF162: 4.995132319 | AJ162: 11.20809037 | AK162: 1.902113033 | AL162: 0.6283185307
A163: 2.142305881 | Z163: 1.884955592 | AA163: 160 | AB163: -1.103846789 | AC163: 0.3454915028 | AD163: -0.1527902726 | AE163: -0.3454915028 | AF163: 5.026548246 | AJ163: 11.27902765 | AK163: 1.975376681 | AL163: 0.3141592654
A164: 2.156493337 | Z164: =Z163+vimaex -> 1.916371519 | AA164: 161 | AB164: -1.083050952 | AC164: 0.3306310399 | AD164: -0.142170183 | AE164: -0.3306310399 | AF164: 5.057964172 | AJ164: 11.34996493 | AK164: =Platoskinishs*COS(2*PI()*AJ164/Tperiod) -> 2 | AL164: =2*ACOS(AK164/(4*Aktina)) -> 0
A165: 2.170680793 | Z165: 1.947787445 | AA165: 162 | AB165: -1.061790847 | AC165: 0.3159377237 | AD165: -0.1320143612 | AE165: -0.3159377237 | AF165: 5.089380099 | AJ165: =AJ164+Tperiod/40 -> 11.42090221 | AK165: 1.975376681 | AL165: 0.3141592654
A166: 2.18486825 | Z166: 1.979203372 | AA166: 163 | AB166: -1.040071954 | AC166: 0.3014260547 | AD166: -0.1223173281 | AE166: -0.3014260547 | AF166: 5.120796025 | AJ166: 11.49183949 | AK166: 1.902113033 | AL166: 0.6283185307
A167: 2.199055706 | Z167: 2.010619298 | AA167: 164 | AB167: -1.017900204 | AC167: 0.2871103542 | AD167: -0.1130731514 | AE167: -0.2871103542 | AF167: 5.152211952 | AJ167: 11.56277678 | AK167: 1.782013048 | AL167: 0.9424777961
A168: 2.213243162 | Z168: 2.042035225 | AA168: 165 | AB168: -0.9952819765 | AC168: 0.2730047501 | AD168: -0.1042754523 | AE168: -0.2730047501 | AF168: 5.183627878 | AJ168: 11.63371406 | AK168: 1.618033989 | AL168: 1.256637061
A169: 2.227430618 | Z169: 2.073451151 | AA169: 166 | AB169: -0.9722240911 | AC169: 0.2591231629 | AD169: -0.09591741109 | AE169: -0.2591231629 | AF169: 5.215043805 | AJ169: 11.70465134 | AK169: 1.414213562 | AL169: 1.570796327
A170: 2.241618074 | Z170: 2.104867078 | AA170: 167 | AB170: -0.9487338013 | AC170: 0.2454792921 | AD170: -0.08799177434 | AE170: -0.2454792921 | AF170: 5.246459731 | AJ170: 11.77558862 | AK170: 1.175570505 | AL170: 1.884955592
A171: 2.25580553 | Z171: 2.136283004 | AA171: 168 | AB171: -0.9248187873 | AC171: 0.2320866025 | AD171: -0.08049086182 | AE171: -0.2320866025 | AF171: 5.277875658 | AJ171: 11.8465259 | AK171: 0.9079809995 | AL171: 2.199114858
A172: 2.269992987 | Z172: 2.167698931 | AA172: 169 | AB172: -0.9004871484 | AC172: 0.2189583111 | AD172: -0.07340657417 | AE172: -0.2189583111 | AF172: 5.309291585 | AJ172: 11.91746318 | AK172: 0.6180339887 | AL172: 2.513274123
A173: 2.284180443 | Z173: 2.199114858 | AA173: 170 | AB173: -0.8757473952 | AC173: 0.2061073739 | AD173: -0.06673040085 | AE173: -0.2061073739 | AF173: 5.340707511 | AJ173: 11.98840046 | AK173: 0.3128689301 | AL173: 2.827433388
A174: 2.298367899 | Z174: 2.230530784 | AA174: 171 | AB174: -0.850608441 | AC174: 0.1935464732 | AD174: -0.06045342858 | AE174: -0.1935464732 | AF174: 5.372123438 | AJ174: 12.05933774 | AK174: 8.379516699e-14 | AL174: 3.141592654
A175: 2.312555355 | Z175: 2.261946711 | AA175: 172 | AB175: -0.8250795929 | AC175: 0.1812880051 | AD175: -0.05456635011 | AE175: -0.1812880051 | AF175: 5.403539364 | AJ175: 12.13027502 | AK175: -0.3128689301 | AL175: 3.455751919
A176: 2.326742811 | Z176: 2.293362637 | AA176: 173 | AB176: -0.799170543 | AC176: 0.1693440673 | AD176: -0.04905947342 | AE176: -0.1693440673 | AF176: 5.434955291 | AJ176: 12.2012123 | AK176: -0.6180339887 | AL176: 3.769911184
A177: 2.340930267 | Z177: 2.324778564 | AA177: 174 | AB177: -0.7728913587 | AC177: 0.157726447 | AD177: -0.04392273126 | AE177: -0.157726447 | AF177: 5.466371217 | AJ177: 12.27214958 | AK177: -0.9079809995 | AL177: 4.08407045
A178: 2.355117724 | Z178: 2.35619449 | AA178: 175 | AB178: -0.7462524723 | AC178: 0.1464466094 | AD178: -0.03914569111 | AE178: -0.1464466094 | AF178: 5.497787144 | AJ178: 12.34308686 | AK178: -1.175570505 | AL178: 4.398229715
A179: 2.36930518 | Z179: 2.387610417 | AA179: 176 | AB179: -0.7192646714 | AC179: 0.1355156863 | AD179: -0.03471756547 | AE179: -0.1355156863 | AF179: 5.52920307 | AJ179: 12.41402415 | AK179: -1.414213562 | AL179: 4.71238898
A180: 2.383492636 | Z180: 2.419026343 | AA180: 177 | AB180: -0.6919390878 | AC180: 0.1249444652 | AD180: -0.0306272225 | AE180: -0.1249444652 | AF180: 5.560618997 | AJ180: 12.48496143 | AK180: -1.618033989 | AL180: 5.026548246
A181: 2.397680092 | Z181: 2.45044227 | AA181: 178 | AB181: -0.6642871868 | AC181: 0.1147433786 | AD181: -0.02686319702 | AE181: -0.1147433786 | AF181: 5.592034923 | AJ181: 12.55589871 | AK181: -1.782013048 | AL181: 5.340707511
A182: 2.411867548 | Z182: 2.481858196 | AA182: 179 | AB182: -0.6363207555 | AC182: 0.1049224938 | AD182: -0.0234137018 | AE182: -0.1049224938 | AF182: 5.62345085 | AJ182: 12.62683599 | AK182: -1.902113033 | AL182: 5.654866776
A183: 2.426055004 | Z183: 2.513274123 | AA183: 180 | AB183: -0.6080518915 | AC183: 0.09549150281 | AD183: -0.02026663921 | AE183: -0.09549150281 | AF183: 5.654866776 | AJ183: 12.69777327 | AK183: -1.975376681 | AL183: 5.969026042
A184: 2.440242461 | Z184: 2.544690049 | AA184: 181 | AB184: -0.579492991 | AC184: 0.08645971286 | AD184: -0.01740961316 | AE184: -0.08645971286 | AF184: 5.686282703 | AJ184: 12.76871055 | AK184: -2 | AL184: 6.283185307
A185: 2.454429917 | Z185: 2.576105976 | AA185: 182 | AB185: -0.5506567363 | AC185: 0.07783603725 | AD185: -0.01482994133 | AE185: -0.07783603725 | AF185: 5.71769863
A186: 2.468617373 | Z186: 2.607521902 | AA186: 183 | AB186: -0.5215560834 | AC186: 0.0696289865 | AD186: -0.01251466768 | AE186: -0.0696289865 | AF186: 5.749114556
A187: 2.482804829 | Z187: 2.638937829 | AA187: 184 | AB187: -0.4922042493 | AC187: 0.06184665998 | AD187: -0.01045057524 | AE187: -0.06184665998 | AF187: 5.780530483
A188: 2.496992285 | Z188: 2.670353756 | AA188: 185 | AB188: -0.4626146989 | AC188: 0.05449673791 | AD188: -0.008624199149 | AE188: -0.05449673791 | AF188: 5.811946409
A189: 2.511179741 | Z189: 2.701769682 | AA189: 186 | AB189: -0.4328011315 | AC189: 0.04758647377 | AD189: -0.007021839969 | AE189: -0.04758647377 | AF189: 5.843362336
A190: 2.525367198 | Z190: 2.733185609 | AA190: 187 | AB190: -0.4027774678 | AC190: 0.04112268716 | AD190: -0.005629577166 | AE190: -0.04112268716 | AF190: 5.874778262
A191: 2.539554654 | Z191: 2.764601535 | AA191: 188 | AB191: -0.3725578356 | AC191: 0.03511175706 | AD191: -0.004433282873 | AE191: -0.03511175706 | AF191: 5.906194189
A192: 2.55374211 | Z192: 2.796017462 | AA192: 189 | AB192: -0.3421565561 | AC192: 0.02955961552 | AD192: -0.003418635825 | AE192: -0.02955961552 | AF192: 5.937610115
A193: 2.567929566 | Z193: 2.827433388 | AA193: 190 | AB193: -0.3115881299 | AC193: 0.02447174185 | AD193: -0.002571135492 | AE193: -0.02447174185 | AF193: 5.969026042
A194: 2.582117022 | Z194: 2.858849315 | AA194: 191 | AB194: -0.2808672224 | AC194: 0.01985315716 | AD194: -0.001876116392 | AE194: -0.01985315716 | AF194: 6.000441968
A195: 2.596304478 | Z195: 2.890265241 | AA195: 192 | AB195: =-xkathetos/2+Aktina*Z195-Aktina*SIN(Z195) -> -0.2500086497 | AC195: 0.01570841944 | AD195: =Aktina*(AF195-SIN(AF195))-2*PI()*Aktina -> -0.001318762561 | AE195: =-Aktina*(1-COS(AF195)) -> -0.01570841944 | AF195: 6.031857895
A196: 2.610491935 | Z196: =Z195+vimaex -> 2.921681168 | AA196: 193 | AB196: -0.2190273636 | AC196: =Aktina*(1+COS(Z196)) -> 0.01204161903 | AD196: -0.0008841221774 | AE196: -0.01204161903 | AF196: 6.063273821
A197: 2.624679391 | Z197: 2.953097094 | AA197: =AA196+1 -> 194 | AB197: -0.1879384369 | AC197: 0.008856374636 | AD197: -0.0005571223148 | AE197: -0.008856374636 | AF197: =AF196+2*PI()/200 -> 6.094689748
A198: 2.638866847 | Z198: 2.984513021 | AA198: 195 | AB198: -0.1567570489 | AC198: 0.006155829702 | AD198: -0.0003225838196 | AE198: -0.006155829702 | AF198: 6.126105675
A199: 2.653054303 | Z199: 3.015928947 | AA199: 196 | AB199: -0.1254984699 | AC199: 0.003942649343 | AD199: -0.0001652362896 | AE199: -0.003942649343 | AF199: 6.157521601
A200: 2.667241759 | Z200: 3.047344874 | AA200: 197 | AB200: -0.09417804646 | AC200: 0.002219017698 | AD200: -6.973314459e-05 | AE200: -0.002219017698 | AF200: 6.188937528
... 37 more rows

Sheet landen trasform
AC11: 1
AC13: A | AD13: B | AE13: C | AF13: A | AG13: B | AH13: C | AI13: A | AJ13: B | AK13: C | AL13: A | AM13: B | AN13: C | AO13: A | AP13: B | AQ13: C | AR13: A | AS13: B | AT13: C | AU13: A | AV13: B | AW13: C | AX13: A | AY13: B | AZ13: C | BA13: A | BB13: B | BC13: C
AA14: 0 | AC14: 1 | AD14: =COS(RADIANS(AA14/2)) -> 1 | AE14: =SIN(RADIANS(AA14/2)) -> 0 | AF14: =0.5*(AC14+AD14) -> 1 | AG14: =SQRT(AC14*AD14) -> 1 | AH14: =0.5*(AC14-AD14) -> 0 | AI14: =0.5*(AF14+AG14) -> 1 | AJ14: =SQRT(AF14*AG14) -> 1 | AK14: =0.5*(AF14-AG14) -> 0 | AL14: =0.5*(AI14+AJ14) -> 1 | AM14: =SQRT(AI14*AJ14) -> 1 | AN14: =0.5*(AI14-AJ14) -> 0 | AO14: =0.5*(AL14+AM14) -> 1 | AP14: =SQRT(AL14*AM14) -> 1 | AQ14: =0.5*(AL14-AM14) -> 0 | AR14: =0.5*(AO14+AP14) -> 1 | AS14: =SQRT(AO14*AP14) -> 1 | AT14: =0.5*(AO14-AP14) -> 0 | AU14: =0.5*(AR14+AS14) -> 1 | AV14: =SQRT(AR14*AS14) -> 1 | AW14: =0.5*(AR14-AS14) -> 0 | AX14: =0.5*(AU14+AV14) -> 1 | AY14: =SQRT(AU14*AV14) -> 1 | AZ14: =0.5*(AU14-AV14) -> 0 | BA14: =0.5*(AX14+AY14) -> 1 | BB14: =SQRT(AX14*AY14) -> 1 | BC14: =0.5*(AX14-AY14) -> 0 | BD14: =4*SQRT(Length/g)*0.5*PI()/BA14 -> 2.837491233 | BE14: =2*PI()*SQRT(Length/g) -> 2.837491233 | BF14: =BD14/BE14 -> 1
AA15: 10 | AC15: 1 | AD15: =COS(RADIANS(AA15/2)) -> 0.9961946981 | AE15: =SIN(RADIANS(AA15/2)) -> 0.08715574275 | AF15: =0.5*(AC15+AD15) -> 0.998097349 | AG15: =SQRT(AC15*AD15) -> 0.9980955356 | AH15: =0.5*(AC15-AD15) -> 0.001902650954 | AI15: =0.5*(AF15+AG15) -> 0.9980964423 | AJ15: =SQRT(AF15*AG15) -> 0.9980964423 | AK15: =0.5*(AF15-AG15) -> 9.06746207e-07 | AL15: =0.5*(AI15+AJ15) -> 0.9980964423 | AM15: =SQRT(AI15*AJ15) -> 0.9980964423 | AN15: =0.5*(AI15-AJ15) -> 2.059463711e-13 | AO15: =0.5*(AL15+AM15) -> 0.9980964423 | AP15: =SQRT(AL15*AM15) -> 0.9980964423 | AQ15: =0.5*(AL15-AM15) -> 0 | AR15: =0.5*(AO15+AP15) -> 0.9980964423 | AS15: =SQRT(AO15*AP15) -> 0.9980964423 | AT15: =0.5*(AO15-AP15) -> 0 | AU15: 0.9980964423 | AV15: 0.9980964423 | AW15: 0 | AX15: 0.9980964423 | AY15: 0.9980964423 | AZ15: 0 | BA15: 0.9980964423 | BB15: 0.9980964423 | BC15: 0 | BD15: 2.842902863 | BE15: 2.837491233 | BF15: =BD15/BE15 -> 1.001907188
AA16: 20 | AC16: 1 | AD16: 0.984807753 | AE16: 0.1736481777 | AF16: 0.9924038765 | AG16: 0.9923748047 | AH16: 0.007596123494 | AI16: 0.9923893406 | AJ16: 0.9923893405 | AK16: 1.453590082e-05 | AL16: 0.9923893406 | AM16: 0.9923893406 | AN16: 5.322819963e-11 | AO16: 0.9923893406 | AP16: 0.9923893406 | AQ16: 0 | AR16: 0.9923893406 | AS16: 0.9923893406 | AT16: 0 | AU16: 0.9923893406 | AV16: 0.9923893406 | AW16: 0 | AX16: 0.9923893406 | AY16: 0.9923893406 | AZ16: 0 | BA16: 0.9923893406 | BB16: 0.9923893406 | BC16: 0 | BD16: 2.859252027 | BE16: 2.837491233 | BF16: 1.007669026
O17: =arxikiGon -> 0 | Q17: =DEGREES(O17) -> 0 | U17: .0 | V17: >0 | W17: k | AA17: 30 | AC17: 1 | AD17: 0.9659258263 | AE17: 0.2588190451 | AF17: 0.9829629131 | AG17: 0.9828152554 | AH17: 0.01703708686 | AI17: 0.9828890843 | AJ17: 0.9828890815 | AK17: 7.382886156e-05 | AL17: 0.9828890829 | AM17: 0.9828890829 | AN17: 1.386397719e-09 | AO17: 0.9828890829 | AP17: 0.9828890829 | AQ17: 0 | AR17: 0.9828890829 | AS17: 0.9828890829 | AT17: 0 | AU17: 0.9828890829 | AV17: 0.9828890829 | AW17: 0 | AX17: 0.9828890829 | AY17: 0.9828890829 | AZ17: 0 | BA17: 0.9828890829 | BB17: 0.9828890829 | BC17: 0 | BD17: 2.886888544 | BE17: 2.837491233 | BF17: 1.017408798
O18: 75 | U18: =COUNTIF(U20:U28,V17) -> 1 | W18: =0.5*PI()/U19 -> 1.570796327 | AA18: 40 | AC18: 1 | AD18: 0.9396926208 | AE18: 0.3420201433 | AF18: 0.9698463104 | AG18: 0.9693774398 | AH18: 0.03015368961 | AI18: 0.9696118751 | AJ18: 0.9696118468 | AK18: 0.0002344352984 | AL18: 0.9696118609 | AM18: 0.9696118609 | AN18: 1.417059525e-08 | AO18: 0.9696118609 | AP18: 0.9696118609 | AQ18: 5.551115123e-17 | AR18: 0.9696118609 | AS18: 0.9696118609 | AT18: 0 | AU18: 0.9696118609 | AV18: 0.9696118609 | AW18: 0 | AX18: 0.9696118609 | AY18: 0.9696118609 | AZ18: 0 | BA18: 0.9696118609 | BB18: 0.9696118609 | BC18: 0 | BD18: 2.926419682 | BE18: 2.837491233 | BF18: 1.031340519
I19: K | J19: Z | M19: F(φ,k) | O19: φ | P19: atan(an/bn*tan(φn)) | R19: a0 | S19: b | T19: c | U19: =SUM(U20:U28)/U18 -> 1 | AA19: 50 | AC19: 1 | AD19: 0.906307787 | AE19: 0.4226182617 | AF19: 0.9531538935 | AG19: 0.952001989 | AH19: 0.04684610648 | AI19: 0.9525779413 | AJ19: 0.9525777671 | AK19: 0.0005759522653 | AL19: 0.9525778542 | AM19: 0.9525778542 | AN19: 8.705876647e-08 | AO19: 0.9525778542 | AP19: 0.9525778542 | AQ19: 1.998401444e-15 | AR19: 0.9525778542 | AS19: 0.9525778542 | AT19: 0 | AU19: 0.9525778542 | AV19: 0.9525778542 | AW19: 0 | AX19: 0.9525778542 | AY19: 0.9525778542 | AZ19: 0 | BA19: 0.9525778542 | BB19: 0.9525778542 | BC19: 0 | BD19: 2.978749948 | BE19: 2.837491233 | BF19: 1.049782961
I20: =PI()/(2*R20) -> 1.570796327 | J20: =S20*SIN(O20) -> 0.9659258263 | K20: =1/2*(2^(L20-1)*T20^2) -> 0 | L20: 0 | M20: =O20/(R20) -> 1.308996939 | O20: =RADIANS(O18) -> 1.308996939 | Q20: =RADIANS(O18) -> 1.308996939 | R20: 1 | S20: =SQRT(1-SIN(arxikiGon/2)^2) -> 1 | T20: =SIN(arxikiGon/2) -> 0 | U20: =IF(R20<>S20,0,IF(R20-R21<>0,R20,0)) -> 0 | AA20: 60 | AC20: 1 | AD20: 0.8660254038 | AE20: 0.5 | AF20: 0.9330127019 | AG20: 0.9306048591 | AH20: 0.06698729811 | AI20: 0.9318087805 | AJ20: 0.9318080027 | AK20: 0.001203921395 | AL20: 0.9318083916 | AM20: 0.9318083916 | AN20: 3.888746706e-07 | AO20: 0.9318083916 | AP20: 0.9318083916 | AQ20: 4.057865155e-14 | AR20: 0.9318083916 | AS20: 0.9318083916 | AT20: 0 | AU20: 0.9318083916 | AV20: 0.9318083916 | AW20: 0 | AX20: 0.9318083916 | AY20: 0.9318083916 | AZ20: 0 | BA20: 0.9318083916 | BB20: 0.9318083916 | BC20: 0 | BD20: 3.045144537 | BE20: 2.837491233 | BF20: 1.073182007
I21: 1.570796327 | J21: =J20+T21*SIN(O21) -> 0.9659258263 | K21: =K20+1/2*3^(M21-1)*T21^2 -> 0 | L21: 1 | M21: =O21/(R21*2^L21) -> 1.308996939 | O21: =Q21 -> 2.617993878 | P21: =ATAN(S21/R21*TAN(O20)) -> 1.308996939 | Q21: =Q20+ATAN(S20/R20*ABS(TAN(Q20))) -> 2.617993878 | R21: =1/2*(R20+S20) -> 1 | S21: =SQRT(R20*S20) -> 1 | T21: =1/2*(R20-S20) -> 0 | U21: =IF(R21<>S21,0,IF(R21-R22<>0,R21,0)) -> 0 | AA21: 70 | AC21: 1 | AD21: 0.8191520443 | AE21: 0.5735764364 | AF21: 0.9095760221 | AG21: 0.9050701875 | AH21: 0.09042397786 | AI21: 0.9073231048 | AJ21: 0.9073203078 | AK21: 0.002252917326 | AL21: 0.9073217063 | AM21: 0.9073217063 | AN21: 1.398521726e-06 | AO21: 0.9073217063 | AP21: 0.9073217063 | AQ21: 5.389022562e-13 | AR21: 0.9073217063 | AS21: 0.9073217063 | AT21: 0 | AU21: 0.9073217063 | AV21: 0.9073217063 | AW21: 0 | AX21: 0.9073217063 | AY21: 0.9073217063 | AZ21: 0 | BA21: 0.9073217063 | BB21: 0.9073217063 | BC21: 0 | BD21: 3.127326519 | BE21: 2.837491233 | BF21: 1.10214491
I22: 1.570796327 | J22: =J21+T22*SIN(O22) -> 0.9659258263 | K22: 0 | L22: =L21+1 -> 2 | M22: 1.308996939 | O22: =IF(P22<0,O21+P22+(INT(O21/PI())+1)*PI(),O21+INT(O21/PI())*PI()+P22) -> 5.235987756 | P22: =ATAN(S22/R22*TAN(O21)) -> -0.5235987756 | Q22: =Q21+ATAN(S21/R21*(TAN(Q21))) -> 2.094395102 | R22: =1/2*(R21+S21) -> 1 | S22: =SQRT(R21*S21) -> 1 | T22: =1/2*(R21-S21) -> 0 | U22: 0 | AA22: 80 | AC22: 1 | AD22: 0.7660444431 | AE22: 0.6427876097 | AF22: 0.8830222216 | AG22: 0.875239649 | AH22: 0.1169777784 | AI22: 0.8791309353 | AJ22: 0.8791223232 | AK22: 0.003891286298 | AL22: 0.8791266293 | AM22: 0.8791266292 | AN22: 4.306009097e-06 | AO22: 0.8791266292 | AP22: 0.8791266292 | AQ22: 5.272782211e-12 | AR22: 0.8791266292 | AS22: 0.8791266292 | AT22: 0 | AU22: 0.8791266292 | AV22: 0.8791266292 | AW22: 0 | AX22: 0.8791266292 | AY22: 0.8791266292 | AZ22: 0 | BA22: 0.8791266292 | BB22: 0.8791266292 | BC22: 0 | BD22: 3.227625167 | BE22: 2.837491233 | BF22: 1.13749256
I23: 1.570796327 | J23: 0.9659258263 | K23: 0 | L23: 3 | M23: 1.308996939 | O23: =IF(P23<0,O22+P23+(INT(O22/PI())+1)*PI(),O22+INT(O22/PI())*PI()+P23) -> 10.47197551 | P23: -1.047197551 | Q23: =Q22+ATAN(S22/R22*(TAN(Q22))) -> 1.047197551 | R23: 1 | S23: 1 | T23: 0 | U23: 0 | AA23: 90 | AC23: 1 | AD23: 0.7071067812 | AE23: 0.7071067812 | AF23: 0.8535533906 | AG23: 0.8408964153 | AH23: 0.1464466094 | AI23: 0.8472249029 | AJ23: 0.8472012667 | AK23: 0.00632848767 | AL23: 0.8472130848 | AM23: 0.8472130848 | AN23: 1.18180883e-05 | AO23: 0.8472130848 | AP23: 0.8472130848 | AQ23: 4.121375463e-11 | AR23: 0.8472130848 | AS23: 0.8472130848 | AT23: 5.551115123e-17 | AU23: 0.8472130848 | AV23: 0.8472130848 | AW23: 5.551115123e-17 | AX23: 0.8472130848 | AY23: 0.8472130848 | AZ23: 5.551115123e-17 | BA23: 0.8472130848 | BB23: 0.8472130848 | BC23: 5.551115123e-17 | BD23: 3.349206102 | BE23: 2.837491233 | BF23: 1.180340599
I24: 1.570796327 | J24: 0.9659258263 | K24: 0 | L24: 4 | M24: 1.308996939 | O24: 20.94395102 | P24: 1.047197551 | Q24: 2.094395102 | R24: 1 | S24: 1 | T24: 0 | U24: 0
I25: 1.570796327 | J25: 0.9659258263 | K25: 0 | L25: 5 | M25: 1.308996939 | O25: 41.88790205 | P25: -1.047197551 | Q25: 1.047197551 | R25: 1 | S25: 1 | T25: 0 | U25: 0
I26: 1.570796327 | J26: 0.9659258263 | K26: 0 | L26: 6 | M26: 1.308996939 | O26: 83.7758041 | P26: 1.047197551 | Q26: 2.094395102 | R26: 1 | S26: 1 | T26: 0 | U26: 0
I27: 1.570796327 | J27: 0.9659258263 | K27: 0 | L27: 7 | M27: 1.308996939 | O27: 167.5516082 | P27: -1.047197551 | Q27: 1.047197551 | R27: 1 | S27: 1 | T27: 0 | U27: 0
I28: 1.570796327 | J28: 0.9659258263 | K28: 0 | L28: 8 | M28: 1.308996939 | O28: 335.1032164 | P28: 1.047197551 | Q28: 2.094395102 | R28: 1 | S28: 1 | T28: 0 | U28: 1
J29: 0.9659258263 | L29: 9

Sheet SNC
M2: u | N2: =Calculations!T6 -> 13.19468915
M3: M | N3: =Calculations!BD8 -> 0.7071067812
M4: m' | N4: =1-M -> 0.2928932188
N5: A | O5: B | P5: c | Q5: Φ | T5: =MAX(S6:S23) -> 158.9754982
M6: 0 | N6: =1 -> 1 | O6: =SQRT(mm) -> 0.5411961001 | P6: =SQRT(M) -> 0.8408964153 | Q6: =2^M6*N6*u -> 13.19468915 | R6: =IF(ABS(P6)<0.0000000000000001,1,0) -> 0 | S6: =IF(AND(R6=0,R7=1),Q6,"") ->  | T6: =IF(Q6<$T$5,1/2*(T7+ASIN(P7/N7*SIN(T7))),$T$5) -> 10.0703601 | U6: =SIN(T6) -> -0.6016635272 | V6: scn
M7: =M6+1 -> 1 | N7: =1/2*(N6+O6) -> 0.7705980501 | O7: =SQRT(N6*O6) -> 0.7356603157 | P7: =1/2*(N6-O6) -> 0.2294019499 | Q7: 20.33560345 | R7: 0 | S7: =IF(AND(R7=0,R8=1),Q7,"") ->  | T7: =IF(Q7<$T$5,1/2*(T8+ASIN(P8/N8*SIN(T8))),$T$5) -> 19.88223005
M8: =M7+1 -> 2 | N8: =1/2*(N7+O7) -> 0.7531291829 | O8: =SQRT(N7*O7) -> 0.75292656 | P8: =1/2*(N7-O7) -> 0.01746886717 | Q8: 39.74922182 | R8: 0 | T8: =IF(Q8<$T$5,1/2*(T9+ASIN(P9/N9*SIN(T9))),$T$5) -> 39.74381991
M9: 3 | N9: 0.7530278715 | O9: 0.7530278647 | P9: 0.0001013114294 | Q9: 79.48774945 | R9: 0 | T9: =IF(Q9<$T$5,1/2*(T10+ASIN(P10/N10*SIN(T10))),$T$5) -> 79.4877491
M10: 4 | N10: 0.7530278681 | O10: 0.7530278681 | P10: 3.407578275e-09 | Q10: 158.9754982 | R10: =IF(ABS(P10)<0.0000000000000001,1,0) -> 0 | S10: 158.9754982 | T10: =IF(Q10<$T$5,1/2*(T11+ASIN(P11/N11*SIN(T11))),$T$5) -> 158.9754982
M11: 5 | N11: 0.7530278681 | O11: 0.7530278681 | P11: 0 | Q11: 317.9509964 | R11: =IF(ABS(P11)<0.0000000000000001,1,0) -> 1 | T11: =IF(Q11<$T$5,1/2*(T12+ASIN(P12/N12*SIN(T12))),$T$5) -> 158.9754982
M12: 6 | N12: 0.7530278681 | O12: 0.7530278681 | P12: 0 | Q12: 635.9019928 | R12: 1 | T12: =IF(Q12<$T$5,1/2*(T13+ASIN(P13/N13*SIN(T13))),$T$5) -> 158.9754982
M13: 7 | N13: 0.7530278681 | O13: 0.7530278681 | P13: 0 | Q13: 1271.803986 | R13: 1 | T13: 158.9754982
M14: 8 | N14: 0.7530278681 | O14: 0.7530278681 | P14: 0 | Q14: 2543.607971 | R14: 1 | T14: 158.9754982
M15: 9 | N15: 0.7530278681 | O15: 0.7530278681 | P15: 0 | Q15: 5087.215942 | R15: 1 | T15: 158.9754982
M16: 10 | N16: 0.7530278681 | O16: 0.7530278681 | P16: 0 | Q16: 10174.43188 | R16: 1 | T16: 158.9754982
M17: 11 | N17: 0.7530278681 | O17: 0.7530278681 | P17: 0 | Q17: 20348.86377 | R17: 1 | T17: 158.9754982
M18: 12 | N18: 0.7530278681 | O18: 0.7530278681 | P18: 0 | R18: 1
M19: 13
M20: 14
M21: 15
M22: 16
M23: 17
M24: 18
M25: 19
M26: 20
M27: 21
M28: 22
